{"text_format":"3","workbook":"xlsx","n_sheets":2,"sheets":["COVER","KHETHWAYO BOQ"],"not_rendered":{"images":1,"external_links":1,"defined_names":1},"read":"whole","date_system":"1900"}

{"sheet":"COVER","index":0,"n_rows":45,"n_cols":4,"rows_kept":45,"merged":[[0,0,0,3],[1,0,1,3],[10,0,10,3],[11,0,11,3],[13,0,13,3],[14,0,14,3],[16,0,16,3],[17,0,17,3],[18,0,18,1],[18,2,18,3],[19,0,19,1],[19,2,19,3],[20,0,20,1],[20,2,20,3],[21,0,21,1],[21,2,21,3],[22,0,22,1],[22,2,22,3],[23,2,23,3],[24,2,24,3],[25,0,25,1],[25,2,25,3],[26,0,26,1],[26,2,26,3],[30,2,30,3],[31,2,31,3],[32,2,32,3],[33,2,33,3],[34,2,34,3],[37,0,37,3],[44,0,44,1]]}
["PROVINCIAL ADMINISTRATION OF KWAZULU-NATAL"]
["DEPARTMENT OF PUBLIC WORKS"]
{"$rows_empty":8}
["BILLS OF QUANTITIES"]
[{"$f":"+'[1]Cover Page-Section 1 of 2'!A12:D12","v":"with GCC for Construction Works - Second Edition 2010"}]
[]
["CONTRACTUAL SECTION"]
["ONE VOLUME APPROACH"]
[]
[{"$f":"+'[1]Master Data'!E18","v":"PHASE 14: STORM DAMAGED PROGRAMME: REPAIRS AND RENOVATIONS TO STORM DAMAGED SCHOOLS THROUGHOUT THE PROVINCE OF KWAZULU-NATAL: NORTH COAST REGION: CLUSTER 14: KHETHWAYO PRIMARY SCHOOL. OPEN BID              "}]
[]
[{"$f":"+'[1]Cover Page-Section 1 of 2'!A20","v":"Engineer/Principal Agent"},null,{"$f":"+'[1]Cover Page-Section 1 of 2'!C20:D20","v":"Electrical Engineers"}]
[{"$f":"+'[1]Cover Page-Section 1 of 2'!A21:B21","v":"Naidu Consulting (Pty) Ltd        "},null,{"$f":"+'[1]Cover Page-Section 1 of 2'!C21:D21","v":"DNA Engineers & Project Managers"}]
[{"$f":"+'[1]Cover Page-Section 1 of 2'!A22:B22","v":"P.O Box 2796"},null,{"$f":"+'[1]Cover Page-Section 1 of 2'!C22:D22","v":"641 Peter Mokaba Rd, Morningside"}]
[{"$f":"+'[1]Cover Page-Section 1 of 2'!A23:B23","v":"Westville"},null,"Morningside"]
[{"$f":"+'[1]Cover Page-Section 1 of 2'!A24:B24","v":"Durban"},null,{"$f":"+'[1]Cover Page-Section 1 of 2'!C24:D24","v":"Durban"}]
[{"$f":"+'[1]Cover Page-Section 1 of 2'!A25:B25","v":3635},null,{"$f":"+'[1]Cover Page-Section 1 of 2'!C25:D25","v":4091}]
[{"$f":"+'[1]Cover Page-Section 1 of 2'!A26","v":"031 - 265 6007 - Tel Number"},null,{"$f":"+'[1]Cover Page-Section 1 of 2'!C26:D26","v":"031 - 207 1576 - Tel Number"}]
[{"$f":"+'[1]Cover Page-Section 1 of 2'!A27","v":"031 - 265 6011 - Fax Number"},null,{"$f":"+'[1]Cover Page-Section 1 of 2'!C27:D27","v":"086 - 670 8703 - Fax Number"}]
[{"$f":"+'[1]Cover Page-Section 1 of 2'!A28:B28","v":"Sherwyn.Bhana@naiduconsulting.com"},null,{"$f":"+'[1]Cover Page-Section 1 of 2'!C28:D28","v":"info@dnaengineers.co.za "}]
[]
[]
[{"$f":"+'[1]Cover Page-Section 1 of 2'!A30","v":"Employer:"},null,{"$f":"+'[1]Cover Page-Section 1 of 2'!C30:D30","v":"Region:"}]
[{"$f":"+'[1]Cover Page-Section 1 of 2'!A31","v":"Head: Public Works"},null,{"$f":"+'[1]Cover Page-Section 1 of 2'!C31:D31","v":"Head Public Works: Operations"}]
[{"$f":"+'[1]Cover Page-Section 1 of 2'!A32","v":"KZN Department of Public Works"},null,{"$f":"+'[1]Cover Page-Section 1 of 2'!C32:D32","v":"KZN Department of Public Works"}]
[{"$f":"+'[1]Cover Page-Section 1 of 2'!A33","v":"Private Bag X 9041"},null,{"$f":"+'[1]Cover Page-Section 1 of 2'!C33:D33","v":"Private Bag X 9041"}]
[{"$f":"+'[1]Cover Page-Section 1 of 2'!A34","v":"PIETERMARITZBURG"},null,{"$f":"+'[1]Cover Page-Section 1 of 2'!C34:D34","v":"Pietermaritzburg"}]
[{"$f":"+'[1]Cover Page-Section 1 of 2'!A35","v":3200},null,{"$f":"+'[1]Cover Page-Section 1 of 2'!C35:D35","v":"3200"}]
[{"$f":"+'[1]Cover Page-Section 1 of 2'!A36","v":"Tel Number:     033 - 355 5569"},null,{"$f":"+'[1]Cover Page 2'!C32","v":"Tel Number:"},{"$f":"+'[1]Cover Page-Section 1 of 2'!D36","v":"033 - 355 5569"}]
[{"$f":"+'[1]Cover Page-Section 1 of 2'!A37","v":"Fax Number:    N/A"},null,{"$f":"+'[1]Cover Page 2'!C33","v":"Fax Number:"},{"$f":"+'[1]Cover Page-Section 1 of 2'!D37","v":"N/A"}]
[]
[{"$f":"+'[1]Cover Page-Section 1 of 2'!A39","v":"Tender Number:      ZNTU03707W"}," ","Project Code:","063422"]
[{"$f":"+'[1]Cover Page-Section 1 of 2'!A40","v":"CIDB Grading:        4GB or higher"}," ",{"$f":"+'[1]Cover Page-Section 1 of 2'!C40","v":"Document Date:"},"2023-09-25"]
[{"$f":"+'[1]Cover Page-Section 1 of 2'!A41","v":"ECDP Number:       N/A"},null,"Contract Period:","7 Calendar Months"]
["Advertisement Date: 25 August 2023"]
["Contracting Party:"]
[{"$f":"+'[1]Cover Page-Section 1 of 2'!A44:D44","v":"CIDB Registration number:"}]
[{"$f":"+'[1]Cover Page-Section 1 of 2'!A45:D45","v":"Central Suppliers Database Registration Number: "}]

{"sheet":"KHETHWAYO BOQ","index":1,"n_rows":1891,"n_cols":9,"rows_kept":1891,"merged":[[0,0,1,8],[2,0,2,2],[2,3,2,4],[2,5,2,6],[2,7,2,8],[3,0,4,2],[3,3,4,4],[3,5,4,6],[3,7,4,8],[5,0,5,8]]}
["PHASE 14: STORM DAMAGED PROGRAMME: REPAIRS AND RENOVATIONS TO STORM DAMAGED SCHOOLS THROUGHOUT THE PROVINCE OF KWAZULU-NATAL: NORTH COAST REGION:          CLUSTER 14: KHETHWAYO PRIMARY SCHOOL. OPEN BID    "]
[]
["SCHOOL NAME",null,null,"KHETHWAYO PRIMARY SCHOOL",null,"WIMS",null,"CONTRACT TYPE"]
["BIDDING ENTITY:",{"$nulls":4},"063422",null,"OPEN BID"]
[]
["BIDDERS TO NOTE THAT ONLY THE RATE COLUMN TO BE FILLED "]
[]
["SECTION","BILL","PAGE NO","ITEM NO","DESCRIPTION","UNIT","QUANTITY","RATE","AMOUNT"]
[1,1,1,null,"SECTION No. 1","H1",0]
[]
[1,1,1,null,"BILL No. 1 : PRELIMINARIES AND GENERAL","H1",0]
[]
[1,1,1,null,"(Applicable to all sections of the Works)",null,0]
[]
[1,1,1,null,"(CPAP WORK GROUP NO. 190 UNLESS OTHERWISE STATED)","H2",0]
[]
[1,1,1,null,"(Applicable to all sections of the Works)",null,0]
[]
[1,1,1,null,"NOTES:","H2",0]
[]
[1,1,1,null,"(i) The agreement is to be the General Conditions of Contract for Works of Civil Engineering Construction (2010) (Second Edition) , publishedby the S. A. Institution Of Civil Engineering.",null,0]
[]
[1,1,1,null,"(ii) The Preliminaries are to be the Construction and management requirements for works contracts - Part 1: General engineering and construction works (SANS 1921-1: 2004 Edition 1) prepared by Standards South Africa and shall be deemed to be incorporated herein.",null,0]
[]
[1,1,1,null,"(iii) Tenderers are referred to the above mentioned documents for the full intent and meaning of each clause thereof (hereinafter referred to by heading and clause number only) for which such allowance must be made as may be considered necessary.",null,0]
[]
[1,1,1,null,"(iv)Where standard clauses or alternatives are not entirely applicable to this contract such modifications, corrections or supplements as will apply are given under each relevant clause heading.",null,0]
[]
[1,1,1,null,"(v) Where any item is not relevant to this specific contract such item is marked N/A (signifying \"not  applicable\").",null,0]
[]
[1,1,2,null,"(vi) Adjustment of the preliminaries:  each item priced, is to be allocated to one or more of  thethree categories, where \"F\" denotes a fixed amount  (amount not to be varied), \"V\" denotes an amount  variable in proportion to value and \"T\" denotes an  amount in proportion to time.",null,0]
[]
[1,1,2,null,"(vii) Time (T) related Preliminaries will only be adjusted for omissions or additions, issued by the Employer, or delays caused by the Employer, for which variation and extension of time has been granted. See Contract Data.",null,0]
[]
[1,1,2,null,"SECTION A: GENERAL CONDITIONS OF CONTRACT","H2",0]
[]
[1,1,2,1,"A1. General (Clause 1)  F:................... V:.................... T:....................","Item",1,null,{"$f":"G37*H37","v":0}]
[{"$nulls":4},""]
[1,1,2,2,"A2.Basis of the Contract (Clause 2)  F:................... V:.................... T:....................","Item",0]
[{"$nulls":4},""]
[1,1,2,3,"A3.Engineer (clause 3) F:................... V:.................... T:....................","Item",0]
[{"$nulls":4},""]
[1,1,2,4,"A4.Contractor's General Obligation (clause 4) F:................... V:.................... T:....................","Item",0]
[{"$nulls":4},""]
[1,1,2,5,"A5.Time and Related Matters (clause 5) - As referred to in the Contract Data under Special Time and Related Matters (clause 5) - As referred to in the Contract Data under Special Condition of Contract. The Contract Period shall be deemed to include all Non - Working Days, Special Non - Working Days and the year-end Builders Annual Industry Holiday Periods. F:................... V:.................... T:...................."]
[{"$nulls":4},""]
[1,1,3,6,"A6.Payment and Related Matters (clause 6) F:................... V:.................... T:....................","Item",0]
[{"$nulls":4},""]
[1,1,3,7,"A7. Quality and Related Matters (clause 7) F:................... V:.................... T:....................","Item",0]
[{"$nulls":4},""]
[1,1,3,8,"A8.Risk and Related Matters (clause 8) F:................... V:.................... T:....................","Item",0]
[{"$nulls":4},""]
[1,1,3,9,"A9.Termination of Contract (clause 9) F:................... V:.................... T:....................","Item",0]
[{"$nulls":4},""]
[1,1,3,10,"A10.Claims and Disputes (clause 10) F:................... V:.................... T:....................","Item",0]
[]
[1,1,3,null,"SECTION B: SANS 1921-1-2004 (Edition 1): CONSTRUCTION AND MANAGEMENT FOR THE WORKS: PART 1  Refer to the SCOPE OF WORK for detail requirements","H2",0]
[]
[1,1,3,11,"B1.Scope  F................. V:.................... T:....................","Item",0]
[{"$nulls":4},""]
[1,1,3,12,"B2.Normative references  F:................... V:.................... T:....................","Item",0]
[{"$nulls":4},""]
[1,1,3,13,"B3.Definitions  F:................... V:.................... T:....................","Item",0]
[{"$nulls":4},""]
[1,1,4,14,"B4.Requirements for construction and management  F:................... V:.................... T:....................","Item",0]
[{"$nulls":4},""]
[1,1,4,15,"B4.1General F:................... V:.................... T:....................","Item",0]
[{"$nulls":4},""]
[1,1,4,16,"B4.2Responsibilities for design and construction  F:................... V:.................... T:....................","Item",0]
[{"$nulls":4},""]
[1,1,4,17,"B4.3Planning, programme and method statements  F:................... V:.................... T:....................","Item",0]
[{"$nulls":4},""]
[1,1,4,18,"B4.4Quality assurance  F:................... V:.................... T:....................","Item",0]
[{"$nulls":4},""]
[1,1,4,19,"B4.5Setting Out  F:................... V:.................... T:....................","Item",0]
[{"$nulls":4},""]
[1,1,4,20,"B4.6Management and disposal of Water  F:................... V:.................... T:....................","Item",0]
[{"$nulls":4},""]
[1,1,4,21,"B4.7Blasting  F:................... V:.................... T:....................","Item",0]
[{"$nulls":4},""]
[1,1,4,22,"B4.8Works adjacent to services and structures  F:................... V:.................... T:....................","Item",0]
[{"$nulls":4},""]
[1,1,4,23,"B4.9Management of the Works and site  F:................... V:.................... T:....................","Item",0]
[{"$nulls":4},""]
[1,1,4,24,"B4.10Earthworks  F:................... V:.................... T:....................","Item",0]
[{"$nulls":4},""]
[1,1,5,25,"B4.11Testing  F:................... V:.................... T:....................","Item",0]
[{"$nulls":4},""]
[1,1,5,26,"B4.12Materials, samples and fabrication drawings  F:................... V:.................... T:....................","Item",0]
[{"$nulls":4},""]
[1,1,5,27,"B4.13Equipment  F:................... V:.................... T:....................","Item",0]
[{"$nulls":4},""]
[1,1,5,28,"B4.14Site Establishment  F:................... V:.................... T:....................","Item",0]
[{"$nulls":4},""]
[1,1,5,29,"B4.15Survey Control  F:................... V:.................... T:....................","Item",0]
[{"$nulls":4},""]
[1,1,5,30,"B4.16Temporary Works  F:................... V:.................... T:....................","Item",0]
[{"$nulls":4},""]
[1,1,5,31,"B4.17Existing Services  F:................... V:.................... T:....................","Item",0]
[{"$nulls":4},""]
[1,1,5,32,"B4.18Health and Safety  F:................... V:.................... T:....................","Item",0]
[{"$nulls":4},""]
[1,1,5,33,"B4.19Environmental Requirements  F:................... V:.................... T:....................","Item",0]
[{"$nulls":4},""]
[1,1,5,34,"B4.20Alterations, additions, extensions and modifications to existing works  F:................... V:.................... T:....................","Item",0]
[{"$nulls":4},""]
[1,1,6,35,"B4.21Inspection of adjoining structures, services, buildings and property  F:................... V:.................... T:....................","Item",0]
[{"$nulls":4},""]
[1,1,6,36,"B4.22Attendance on nominated and selected subcontractors  F:................... V:.................... T:....................","Item",0]
[]
[]
[1,1,6,null,"SECTION C: SCOPE OF WORK in accordance with SANS 10403","H2",0]
[]
[1,1,6,null,"'(The reference to Clauses refer to Table B.1 of SANS 1921-1:2004)",null,0]
[]
[1,1,6,37,"C1.Certification by recognised bodies - CLAUSE 4.4  F................. V:.................... T:....................","Item",0]
[{"$nulls":4},""]
[1,1,6,38,"C2.Agrément certificates - CLAUSE 4.5  F................. V:.................... T:....................","N/A",0]
[{"$nulls":4},""]
[1,1,6,39,"C3.Other services and facilities - CLAUSE 4.8  F................. V:.................... T:....................","Item",0]
[{"$nulls":4},""]
[1,1,6,40,"C4.Recording of weather - CLAUSE 5.2  F................. V:.................... T:....................","Item",0]
[{"$nulls":4},""]
[1,1,6,41,"C5.Management meetings - CLAUSE 5.3  F................. V:.................... T:....................","Item",0]
[{"$nulls":4},""]
[1,1,6,42,"C6.Daily records CLAUSE 5.6  F................. V:.................... T:....................","Item",0]
[{"$nulls":4},""]
[1,1,7,43,"C7.Bond and guarantees - CLAUSE 5.7  F................. V:.................... T:....................","Item",0]
[{"$nulls":4},""]
[1,1,7,44,"C8.Permits - CLAUSE 5.9  F................. V:.................... T:....................","Item",0]
[{"$nulls":4},""]
[1,1,7,45,"C9.Proof of compliance with the law- CLAUSE 5.10  F................. V:.................... T:....................","Item",0]
[]
[]
[1,1,7,null,"SECTION D: SPECIFICATION DATA ASSOCIATED WITH SANS 1921-1:2004 (Table A.1)","H2",0]
[]
[1,1,7,46,"D1.Requirements for drawings, information and calculations for which the contractor is responsible CLAUSE 4.1.7  F................. V:.................... T:....................","Item",0]
[]
[1,1,7,47,"D2.The responsibility strategy assigned to the contractor for the works  CLAUSE 4.2.1  F................. V:.................... T:....................","Item",0]
[]
[1,1,7,48,"D3.The planning, programme and method statements - CLAUSE 4.3  F................. V:.................... T:....................","Item",0]
[]
[1,1,7,49,"D4.Samples of materials, workmanship and finishes  - CLAUSE 4.12.1  F................. V:.................... T:....................","Item",0]
[]
[1,1,8,50,"D5.Fabrication drawings that the contractor is to provide and deliver to the employer  - CLAUSE  4.12.2  F................. V:.................... T:....................","Item",0]
[]
[1,1,8,51,"D6.Office for the foreman CLAUSE 4.14.3  F................. V:.................... T:....................","Item",0]
[{"$nulls":4},""]
[1,1,8,52,"D7.Telephone -  CLAUSE 4.14.3  F................. V:.................... T:....................","Item",0]
[{"$nulls":4},""]
[1,1,8,53,"D8.Office for inspector of works  -  CLAUSE 4.14.3  F................. V:.................... T:....................","Item",0]
[]
[1,1,8,54,"D9.Telephone in office for inspector of works  -  CLAUSE 4.14.3  F................. V:.................... T:....................","Item",0]
[]
[1,1,8,55,"D10.Sheds  -  CLAUSE 4.14.3  F................. V:.................... T:....................","Item",0]
[]
[1,1,8,56,"D11.Provision and erection of signboards -  CLAUSE 4.14.6  F................. V:.................... T:....................","Item",0]
[]
[1,1,8,57,"D12.Termination, diversion or maintenance of existing services - CLAUSE4.17.1  F................. V:.................... T:....................","Item",0]
[]
[1,1,8,58,"D13.Services which are known to exist - CLAUSE 4.17.3F................. V:.................... T:....................","Item",0]
[]
[1,1,9,59,"D14.Detection apparatus - CLAUSE 4.17.4  F................. V:.................... T:....................","Item",0]
[]
[1,1,9,60,"D15.Additional health and safety requirements - CLAUSE 4.18  F................. V:.................... T:....................","Item",0]
[]
[1,1,10,null,"SECTION E: SPECIFIC PRELIMINARIES","H2",0]
[]
[1,1,10,null,"Section E contains Specific Preliminary items which apply to this contract except where \"N/A\" (Not Applicable) appears against the item","H3",0]
[]
[1,1,10,null,"E1. PROPRIETARY BRANDED PRODUCTS","H2",0]
[]
[1,1,10,61,"The contractor shall take delivery of, handle, store, use apply and/or fix all proprietary branded products in strict accordance with the manufacturers' instruction after consultation with the manufacturer's authorised representative.  F:......................... V:........................ T:.........................","Item",0]
[]
[1,1,10,null,"E2. OVERTIME","H2",0]
[]
[1,1,10,62,"Should overtime be required to be worked for any reasonwhatsoever, the costs of such overtime are to be borne by the Contractor unless the Engineer/Principal Agent has specifically authorised in writing, prior to the execution thereof, that costs for such overtime are to be borne by the Employer.F:......................... V:........................ T:........................","Item",0]
[]
[1,1,10,null,"E3. AS BUILT DRAWINGS","H2",0]
[]
[1,1,10,63,"The position of construction breaks and the extent ofindividual concrete pours are to be recorded by the Contractor on the Structural Engineer's drawings and areto be submitted to the Engineer/Principal Agent and the Structural Engineer for their records.F:......................... V:........................ T:.........................","Item",0]
[]
[1,1,11,null,"E4. SITE INSTRUCTIONS","H2",0]
[]
[1,1,11,64,"Site Instructions issued on site are to be recorded intriplicate in a Site Instruction book which is to be maintained on site by the Contractor.F:............................. V:............................ T:.................","Item",0]
[]
[1,1,11,null,"E5. LABOUR RECORDS","H2",0]
[]
[1,1,11,65,"At the end of each week the Contractor shall provide the Engineer/Principal Agent with a written record, in schedule form, reflecting the number and description oftradesmen and labourers employed by him and all sub-contractors on the works each day.F:............................. V:...........................T:...................","Item",0]
[]
[1,1,11,null,"Note: In the event that the contractor fails to satisfy the requirements of this specification, the Employer (Head: Public Works) may apply any of the sanctions provided in the contract. Sanctions may include the application of a financial penalty of .04% of the Contract Sum per calendar day of which the requiredreport has not been submitted.",null,0]
[]
[1,1,11,null,"E6. PLANT RECORDS","H2",0]
[]
[1,1,11,66,"At the end of each week the Contractor shall providethe Engineer/Principal Agent with a written record, inschedule form, reflecting the number, type and capacityof all plant, excluding hand tools,  currently used on the works.F:......................... V:........................ T:.........................","Item",0]
[]
[1,1,12,null,"E7. CESSION OF MONIES","H2",0]
[]
[1,1,12,67,"The Contractor shall not cede nor assign his rights orclaims to any monies due or to become due under this contract.F:......................... V:........................ T:.........................","Item",0]
[]
[1,1,12,null,"E8. SECTIONAL COMPLETION","H2",0]
[]
[1,1,12,68,"When it is required that the contract be executedin sections or portions, the tenderer shall allow for all costs in this regard as no claim for additional costs will be entertained.F:......................... V:........................ T:.........................","Item",0]
[]
[1,1,13,null,"E9. LOCAL LABOUR","H2",0]
[]
[1,1,13,69,"It is a general requirement of this contract that persons normally resident in the locality of the works (Local Labour) or unemployed parents whose children attend this specific school, be given preference for employment on the contract. Provided, however, that should adequate and appropriate Labour not be available within the locality, others may be employed subject to satisfactory proof being provided that every reasonable endeavour has been made to employ Local Labour. The Contractor shall identify the local community leaders with the purpose of negotiating with them regarding the utilization of Local Labour in the construction process. In this regard, the Contractor shall furthermore give preference, wherever possible to the employment of single heads of households, women and youth. The Contractor shall, in general, maximize the involvement of the local community. All standard local labour employment forms (EPWP), local labour forms, together with the supporting documentation ie, Certified copies of ID Documents, Employment details, wage rates, proof of payments, period of employment and employment contracts, must be submitted with the monthly payment certificate to the Engineer.    F:......................... V:........................ T:.........................","Item",0]
[]
[1,1,13,null,"E10. IMPORT PERMITS AND DUTIES","H2",0]
[]
[1,1,13,70,"The responsibility for obtaining the necessary importpermits shall rest with the successful Tenderer. No foreign exchange will be arranged or provided by the Administration.Tenderers are to allow in their tenders and pay the ordinary levy imposed on imported items in terms ofitem 196.10 of Part 8 of Schedule No. 1 of the Customsand Excise Act, 1964 with effect from 1 October 1989.F:......................... V:........................ T:.........................","Item",0]
[]
[1,1,14,null,"E11. CONTRACT PRICE ADJUSTMENT PROVISIONS (CPAP)","H2",0]
[]
[1,1,14,71,"Notwithstanding anything to the contrary contained in theGCC for Construction Works 2010 2nd Edition, thisContract shall only when the Construction Period exceeds 6 months and the Contract sum exceeds R1,000,000,00  be subject to the Contract Price Adjustment Provisions Indices Application Manual for use with P0151 indices (CPAP) (Revised 1 January 2013) as published by Statistics South Africa. Tenderers are advised thatwith reference to Clause 3.4.6 of the Contract Price Adjustment Provisions (CPAP) Indices ApplicationsManual, the Head: Public Workswill not accept the submission by Tenderers of lists of  additional items.Where this contract is a Lump Sum contract,the contract will be subject to Contract Price Adjustment Provisions (CPAP) only where the contract period equalsor exceeds 6 calendar months. The applicable work group shall be WG 180 for domestic buildings or WG 181 for commercial and industrial buildings.F:......................... V:........................ T:.........................","Item",0]
[]
[]
[1,1,14,null,"E12. EPWP CONDITIONS AND SPECIFICATIONS","H2",0]
[]
[1,1,15,null,"12.1  EMPLOYMENT TARGETS ","H3",0]
[]
[1,1,15,72,"E12.1 a Employment TargetsThe contractor needs to provide a realistic estimate onthe number of jobs that the project has the potential tocreate throughout the project duration as the project will be implemented using labour intensive construction methods on elements where it is economical and feasible for this construction method.No of jobs to be created = ……. [Contractor to fill in an estimated number]F:......................... V:....................... T:......................","Item",0]
[]
[1,1,15,73,"E12.1 b Employment requirementsTenderers are advised that this contract will be subject tothe Expanded Public Works Program (EPWP) aimed at alleviating and reducing unemployment.Tenderers must allow for any costs for the employmentof unskilled labour as per the requirements of the EPWP program;1. 55% of unskilled labour to be women.2. 55% of unskilled labour to be youth aged between 18     and 35 years3. 2% of unskilled labour to be people living with disability 4. 100%  Unskilled labour utilised must reside withinthe boundaries of the Municipality Ward where this contract is executed, with preference to the local community closest or at the walking distance to the contract site. Wherever possible local skilled tradesmenare to be employed on this contract with the view to maximize utilization of local resources.(See E9) F:............................. V:............................ T:................","Item",0]
[]
[1,1,16,74,"E12.1 c Labour rate and payment intervalsThe contractor should ensure that labour rate paid to unskilled local labour is commensurate to the daily task.When determining the rate, consideration should be given to that EPWP beneficiaries are mostly bread winners in their families, as the program intends alleviating poverty. There should also be consideration that the labour rate promotes creation of expanded number of jobs created and person days of work.Contractors should make endeavours to ensure that labourers, particularly unskilled are remunerated on fortnight basis and prior notification be made should there be a shortfall on their wages.The labour rate for local unskilled shall also be determined in consideration of the location of the project, i.e. for projects implemented in urbanized municipalities will not be the same as that for rural municipalities.F:......................... V:........................ T:.......................","Item",0]
[]
[1,1,16,null,"12.2 LABOUR INTENSIVE CONSTRUCTION METHOD ","H3",0]
[]
[1,1,16,75,"E12.2 a Labour Intensive Construction (LIC) methodOn site there must a person(s) having competency inmanaging and implementing LIC methods. *Foreman @ NQF Level 4 the Unit Standard on   Implementing LIC methods on site.*Site Agent/ Managers @ NQF level  5 the Unit Standard on Manage Labour-Intensive Skills Programme both  must be CETA accreditedF:............................. V:............................ T:................","N/A",0]
[]
[1,1,17,76,"E12.2 b Labour Intensive Construction MethodThose parts of the contract to be constructed using Labour Intensive methods will be marked in the BoQ with letter LI (indicating Labour Intensive) against every item so designated. Such works will only be constructed using method so indicated. Reference to be made to Guidelines for the implementationof Labour Intensive Infrastructure projects under EPWP. \"Scope of Work in Respect of Work Relating to the Expanded Public Works Programme (EPWP)\"F:............................. V:............................ T:............................ ","N/A",0]
[]
[1,1,17,null,"12.3 RECORD KEEPING","H3",0]
[]
[1,1,17,77,"12.3.1 Every employer must keep in the project site office the following  minutes of site progress minutes; contractors’ monthly site progress reports; accurately recorded attendance register; proof of payment as means to verify authenticity of data in the EPWP Beneficiary form submitted with payment certificates. Copies of submitted EPWP beneficiary data forms should also be kept in the site office.  F:............................. V:...................T:.......................... ","N/A",0]
[]
[1,1,17,78,"12.3.2 The employer must keep this record for a period of at least three (3) years after the completion of the project in his/her office as the project site office would have been relocated. This should be safely kept for job creation data verifications and periodical audits on projects conducted by National and Provincial  Department of Public Works  after one (1) or two (2) quarters of submitting captured EPWP Data to the National EPWP coordinating Department.    F:........................... V:...................... T:...................... ","Item",0]
[]
[1,1,18,null,"E12.4 EPWP REPORTING as per EPWP DATA FORM","H3",0]
[]
[1,1,18,79,"At the end of each month as part of site progress report and to be attached to every contractors’ progress payment certificate; the contractor shall provide the principal agent & Public Works with a written records, as per EPWP data form; which will be reflecting, beneficiaries full name & surname; ID No and job description of labour employed by main contractor and sub-contractors on site. At the end of each month the contractor must submit the following documents to be attached to the Progress payment certificate:1. EPWP monthly data collection form 2. Worker monthly payment upload3. Worker monthly proof of payment  i.e 3.1 Acknowledgement of receipt of payment or3.2 Payslips 3.3 Bank statement highlighted the workers paid 4. Worker monthly training form 5. Monthly attendance register6. Certified copies of ID’s (once off)7. ID size photos (once off)8. Proof of UIF 9. Proof of COIDAF:....................... V:..................... T:.......................","Item",0]
[]
[1,1,19,null,"E12.5  EPWP PROMOTION","H3",0]
[]
[1,1,19,80,"12.5.1 EPWP signage board  EPWP Program at the project level shall always be promoted through have the projects signage board that embrace EPWP logo at the bottom, correct measurement for this signage board will be provided by the project leader during the site handing over meeting. the standard \"HELVETIVA Medium \" letters are to be used . Professional title to be 10 mm above line . Line thickness to be 8 mm thick . Space between bottom of the line and bottom of the lettering below the line has to be 100 mm. Letter sizes are as follows : Helvetian medium 100 mm black upper case to be for project name and owner . Helvetian medium 75mm black upper case only to be used for professional titles.Project name and owner shall be black lettering on white background board sizes are as follows : Board to be minimum 2000mm from ground level and to be constructed from reinforced formed chromadek panels minimum 0,6mm thick chromadek. The contractor is responsible for ensuring that the project board remains neatly and safely erected for the full duration including maintenance period, after which the project board and post are to be dismantled and handed to the client in good order.         F:........................ V:........................ T:........................","N/A",0]
[]
[1,1,19,81,"12.5.2 Branding of labour apparel  Contractor & Sub-contractors’ labourers shall be provided with EPWP branded Personal Protective Equipment (PPE), reflector vest with EPWP wording at the back is an ideal and cost effective means of promoting program on site. The contractor is then advised to price for both item 17.5.1 and 17.5.2  F:........................ V:....................... T:.........................","N/A",0]
[]
[1,1,21,null,"E12.6 COMMUNITY LIAISON OFFICER (CLO)","H3",0]
[]
[1,1,21,82,"UTILISATION OF A COMMUNITY LIAISON OFFICER  In addition to the requirements of Clause E9, contained in this document;   The Contractor shall allow for and pay any and all costs necessary for the engagement of the services of a Community Liaison Officer (CLO) for the full duration of this contract.  In the interest of providing a sound service to both the community and the Contractor, a CLO may only manage one project at a given time.  A CLO will be identified by the local structures of the ward areas and appointed following fair and transparent interviewing process, to be conducted in the presence of local structures and the contractor representative, in order to assist the Contractor in the procurement of any local labour, etc. required for this project. The Contractor is to liaise with the CLO and afford him any assistance needed in ensuring sound working relations with the local community.  Key Responsibilities of the CLO are envisaged to include and not necessary be limited to:  1. Assisting local leadership in conducting skills and resources audit which facilitates sourcing labour from within the ward or targeted areas for employment, as required by contractor.  2. Assisting in sourcing labour-only domestic sub-contractors and the procurement of materials from local resources, as required by the contractor.  3. Assisting the contractor by identifying areas of potential conflict and or threats to the project or to stakeholders in the project and recommend appropriate action to the contractor.  4. Assisting contractor and stakeholders in the project in the resolution of any conflict which may arise.  5. Establishing and ensuring that sufficient and open communication channels between the contractor and the work force are maintained.  6. Establish and ensuring that efficient and open communication channels between the contractor and the community are maintained  7. Identifying and reporting to the Contractor regarding issues where communication between stakeholder is necessary, recommend courses of action and facilitate such communications  8. Assisting the Contractor and the work force in the establishment of grievance procedures and necessary recommendation to the Contractor regarding the grievances and solution thereto.  9. Attending to site meetings and project implementation meetings as required by the Contractor and prepare periodic reports as may be required by the Contractor from time to time.  10. Attending to such other duties which are consistent with the functions of a CLO, as may be required by the Contractor from time to time.  Tenderers are to price twice the rate of unskilled local labour rate against this item for any and all costs arising out of compliance with the foregoing and in the event of a Tenderer failing to price against this item or making inadequate financial provision against this item for compliance as aforesaid, then no claim for costs or additional cost incurred will be entertained by the Head: Works  F:........................ V:......................... T:....................... ","Item",0]
[]
[1,1,22,null,"E12.7  SKILLS DEVELOPMENT ON SITE","H3",0]
[]
[1,1,22,83,"Contractor in conforming to the object of EPWP that its beneficiaries need to be capacitated with skills that will render them employable in the future. It is then the responsibility of the Contractor that mandatory life skills are provided to 100% of workforce on site and on the job training to labourers from whom the potential for further development has been identified. The latter is not mandatory to all as it covers technical skills.   Contractor should also make provision for the possibility that there might be local youth that will need to be placed on the project with an intention to be provided support towards improving their level of competency and productivity. Contractor shall also provide all necessary on-the-job training to targeted labour to enable such labour to master and advance on techniques required to undertake the work in accordance with requirements of the contract in a manner that does not compromise workers health and safety.  F:......................... V:........................ T:........................","Item",0]
[]
[1,1,22,null,"E12.8 LABOUR ONLY Sub Contracting for local emerging enterprises","H3",0]
[]
[1,1,22,null,"Tenderer’s are advised that this contract is subject to the Expanded Public Works Programme (EPWP) and the following criteria will apply: ",null,0]
[]
[1,1,23,null,"AFRICAN EQUITY OWNERSHIP","H4",0]
[]
[1,1,23,84,"a)  The Tenderer is to allow for  5% of the total value of works to be undertaken by a Priority Population Group.  This percentage excludes the costs of employing local unskilled labour. The allocation of this percentage from the Project, the screening of people, the selection of skills, will be for the Contractor to adjudicate.  b)  The Priority Population Group consists of women, youth and disabled people.  c)  The Contractor is to give first option for prospective PPG’s from the surrounding areas of the Project. Should there be insufficient suitable people fitting the criteria of PPG’s, the Contractor may hire people from further afield. This is to be done only after consultation with the Department of Works EPWP Co-ordinator and the Community Liaison Officer (CLO).  d)  A Mentor is to be employed by the Contractor, in consultation with the Department of Works for the purposes of quality control and liaison between the Contractor and the selected PPG’s on site. The mentor will be responsible for ensuring an acceptable level of quality workmanship and that such work carried out by the PPG's is executed within the time frames stipulated.   In so far as possible, the Contractor is encouraged to expand the PPG’s skills, knowledge and performance levels.  F:........................ V:........................ T:.......................","Item",0]
[]
[1,1,24,null,"TENDERER'S TO NOTE CONDITIONS","H4",0]
[]
[1,1,24,null,"a) The contract to be entered into between the Contractor and the PPG’s will be a LABOUR ONLY sub-contract.  b) The Contractor will be responsible for ensuring that all materials for use by the PPG’s in the works are to be on site timeously. The Contractor shall liaise with The Mentor and PPG to determine the nature and extent of materials required and the lead time necessary.  c) The Contractor shall be responsible for the overall programming of the Works and he is to allow for monitoring the PPG’s programme and progress.  d) In conjunction with the Mentor, he is to allow for the supervision and mentoring (where necessary) of the PPG to ensure quality and adherence to standard building practice  e) The Contractor is to allow for extra storage facilities on site for the PPG’s tools and equipment.  f) Basic tools shall be provided by the PPG’s and where these are not available; the Contractor will supply him with the necessary tools and equipment and deduct the costs thereof from the interim claims made by the PPG.  g) Work requiring specialized tools will be provided free of charge by the Contractor with the provision that these be returned upon completion of the Work.     ",null,0]
[]
[1,1,25,null,"CO-ORDINATION","H4",0]
[]
[1,1,25,85,"The Contractor is to co-ordinate the work of all the PPG’s, Sub-Contractors and Nominated Sub- Contractors appointed direct by the Employer in such a manner and at all times as will suit the building programme and he is to allow adequate access, for the PPG’s, where required, to carry out their work in an efficient manner as no claims for extras in this connection will be entertained.  F:........................  V:.......................  T:...................... ","Item",0]
[]
[1,1,25,null,"ATTENDANCE ","H4",0]
[]
[1,1,25,86,"The Contractor may allow for attendance upon the PPG’s concerned to execute the work. The Contractor is to allow the PPG’s the use of any scaffolding belonging to him while it remains so erected on the site.   Where scaffolding is necessary for the use by any PPG and the Contractor has not erected any for his own use or has removed same after his own use, the Contractor shall supply sufficient scaffolding to the PPG to be erected and dismantled by the PPG and returned to the Contractor.  This attendance upon PPG’s to execute the work is to include for the scaffolding provisions as aforesaid and, in addition, is to include for co-operating to the fullest extent with all the parties, attending on off-loading materials, providing suitable storage for tools and materials used by the PPG’s, use of general facilities such as latrines, etc., supply and cost of power, lighting, water and the like.  F:.........................  V:.......................  T:........................","Item",0]
[]
[1,1,26,null,"E12.9 EPWP CONTRACT FOR LABOUR","H3",0]
[]
[1,1,26,87,"It is compulsory that shortly after the contractor and or sub contractor has appointed local labour, the employment contract should be signed by both parties, prior to commencement with works on site. The employment contract forms part of the Ministerial Determination or from the regional EPWP officials. Each contract will lapse at the end of each financial year therefore requiring the Contractor  to do a renewal of each contract should the need of employment still exist for that particular labourer.  F:........................  V:......................  T:..........................","Item",0]
[]
[1,1,26,null,"E12.10  EPWP SCOPE OF WORK","H3",0]
[]
[1,1,26,null,"Contractors are to price any item on the Bill of Quantities having below, bearing in mind that they are regarded as  main sources of job creation, whether sub contracted or undertaken by the main contractor.",null,0]
[]
[1,1,26,88,"Elements on the scope of work where application of Labour Intensive Construction methods as  will indicated with letters (LI) are regarded feasible are as follows;  i)  Excavating trenches for foundations and any other civil works with the  depth not more than 1.5 m   ii)  All masonry works which include concrete mixing on site; brickwork; plastering; screed works; jointing; etc.  iii)  Painting, Plumbing, Ironmongery; roof cladding; glazing; tilling; carpentry; flooring; waterproofing; etc.  F:........................ V:........................ T:........................","Item",0]
[]
[1,1,28,89,"  Note: It is a general requirement of this contract that persons normally resident in the ward of the works (local labour) be given preference for employment on the contract. Provided, however, that should adequate and appropriate labour not be available within the ward, others may be employed subject to satisfactory proof being provided that every reasonable endeavour has been made to employ local labour (Local Sub-contractor(s); Skilled; Semi-Skilled and Unskilled). The contractor shall in consultation with the local community leaders with the purpose of negotiating with them regarding the utilization of local resources in the construction process. In this regard, the contractor shall furthermore give preference, wherever possible to the employment of single heads of households, women and youth as well as families declared as most indigent by War on Poverty/ Sukuma Sakhe program profiling process. The contractor should aim, in general, to maximise the involvement of the local community, however workers from other communities should not exceed 20% of all persons working on the project, where local employees possess skills at level of competency that meet contractors requirements.  Payment for the labour-intensive component of the works. Payment for works identified in the Scope of Work as being labour-intensive shall only be made in accordance with the provisions of the Contract if the works are constructed strictly in accordance with the provisions of the Scope of Work. Any non-payment for such works shall not relieve the Contractor in any way from his obligations either in contract or in delict.  Linkage of payment for labour-intensive component of works to submission of project data.  The Contractor’s payment invoices shall be accompanied by labour information for the corresponding period in a format specified by the employer. If the contractor chooses to delay submitting payment invoices, labour returns shall still be submitted as per frequency and timeframe stipulated by the Employer. The contractor’s invoices shall not be paid until all pending labour information has been submitted.  Applicable labour laws  The current Ministerial Determination (also downloadable at www.epwp.gov.za)  Expanded Public Works Programmes, issued in terms of the Basic Conditions of Employment Act of 1997 by the Minister of Labour in Government Notice , shall apply to works described in the scope of work as being labour-intensive and which are undertaken by unskilled or semi-skilled workers.  F:......................... V:....................... T:....................... ","Item",0]
[]
[1,1,28,null,"E13  HIV/AIDS AWARENESS","H3",0]
[]
[1,1,28,null,"Tenderers are to price against the following items for compliance with the SPECIFICATION FOR HIV/AIDS AWARENESS  bound into this document (The clauses referred to are those of the Specification for HIV/AIDS)",null,0]
[]
[1,1,28,90,"E13.1    Provide and maintain a condom dispenser in             terms of Clause 5.1a)              F:................... ... V:................... T:...................","Item",0]
[]
[1,1,28,91,"E13.2    Provide and maintain HIV/AIDS awareness posters  terms of Clause 5.1b)              F:................... V:................... T:................. ","Item",0]
[]
[1,1,28,92,"E13.3   HIV /Aids Awareness Programme on Site for notless than 90% of workers inclusive of all direct and indirect costs; Engage a qualified service provider as describedin the scope of works to conduct an HIV Awareness Programme  in terms of Clause 5.2.1a)             F:.................... V:................... T:...................","Item",0]
[]
[1,1,28,93,"E13.4   Arrange for workers to attend the HIVAwareness Programme in terms of Clause 5.2.1b)            F:..................  V:..................  T:.................","Item",0]
[]
[1,1,29,null,"E13  HIV/AIDS AWARENESS","H3",0]
[]
[1,1,29,94,"E13.5   Reporting            Prepare and attach to claims for payment a briefreport in terms of Clause 5.3 (see also HIV/STI Compliance Report includedwith this document).             F:................... V:..................... T:....................             Note: In the event that the contractor fails to satisfy the requirements of this specification, the employer (Head: Public Works) may apply any of the sanctions provided for in the contract. Sanctions may include the application of a financial penalty of .04% of the Contract Sum per calendar day of which the required reports has not been submitted.","Item",0]
[]
[1,1,29,null,"E14  OCCUPATIONAL HEALTH AND SAFETY ACT NO. 85 OF 1993","H3",0]
[]
[1,1,29,95,"Tenderers are to allow for costs in providing  a project specific ' Construction Phase Safety, Health and Environmental Plan' in accordance with  \"Section 2 - Specification Data associated with SANS 1921-1:2004\" clause C4.18 in \"Part C3 - Scope of Work\"  F:...................  V:.....................  T:.................... ","Item",0]
[]
[1,1,29,null,"E15  NOTICE BOARD, SITE OFFICE, ETC.","H3",0]
[]
[1,1,29,96,"Bidders are to allow for the provision and removal of a project notice board and a site office in accordance with the Principal Agent's requirements.  F:...................... V:.................... T:..................... ","Item",0]
[]
[1,1,30,null,"E16  IMPORTED MATERIALS AND EQUIPMENT","H3",0]
[]
[1,1,30,97,"Where imported items are listed in the tender documents, the tenderer shall provide all information called for, failing which the price of any such item, material or equipment shall be excluded from currency fluctuations. (Refer to T2.14 - Schedule of Imported Materials and Equipment.  F:..................  V:.....................  T:..........................","Item",0]
[]
[1,1,30,null,"E17  CONTRACT DOCUMENTS","H3",0]
[]
[1,1,30,98,"The drawings issues with these Bid documents do not comprise the complete set but serves as a guide only for Biding purposes and for indicating the scope of works to enable the Bidder to acquaint him with the nature and extent of the works and the manner in which they are to be executed. Should any part of the drawings not be clearly legible to the Bidder he shall, before submitting his Bid, obtain clarification in writing from the principal agent.   F:..................... V:................... T:..................... ","Item",0]
[]
[1,1,30,null,"E18  GENERAL PREAMBLES","H3",0]
[]
[1,1,30,99,"The Document Preambles will be the “ASAQS Model Preambles for Trades – 2008” and is obtainable from the various Regional Office’s of the Department of Public Works and shall be read in conjunction with the Bills of Quantities and be referred to for the full descriptions of work to be done and materials to be used.  F:.................... V:..................... T:..................... ","Item",0]
[]
[1,1,31,null,"E19  TRADE NAMES","H3",0]
[]
[1,1,31,100,"Wherever a Trade Name for any product has been described in the Bills of Quantities the Bidder's attention is drawn to the fact that any other product of equal quality may be used subject to the written approval of the Principal Agent being obtained prior to the closing date for submission of Bids.  F:..................... V:....................... T:....................... ","Item",0]
[]
[1,1,31,null,"E20  EXISTING PREMISES OCCUPIED","H3",0]
[]
[1,1,31,101,"Refer to Scope of Works  Part C3 of this Bid Document for information on the occupation of existing buildings.  F:................... V:.................... T:..................... ","Item",0]
[]
[1,1,31,null,"E21  INACCURATE AND DEFECTIVE WORK EXECUTED UNDER PREVIOUS CONTRACT","H3",0]
[]
[1,1,31,102,"The contractor shall, after taking possession of the site and before commencing the work, check all levels, liners, profiles and the like and satisfy himself as to the dimensional accuracy of all work executed under the previous contract which may affect his work. Should any inaccurate or defective work be found, the contractor shall immediately notify the principal agent in writing requesting his instructions with regard thereto and afford every facility to those rectifying such inaccurate or defective work.  F:.................... V:..................... T:..................... ","Item",0]
[]
[1,1,31,null,"E22  VIEWING THE SITE IN SECURITY AREAS","H3",0]
[]
[1,1,31,103,"If the site is situated in a security area and the Bidder must arrange with the Authorities to obtain permission to enter the site for Bidding purposes.  F:......................  V:....................  T:....................... ","Item",0]
[]
[1,1,32,null,"E23  COMMENCEMENT OF WORKS IN SECURITY AREAS","H3",0]
[]
[1,1,32,104,"If the works falls within a security area, the contractor must arrange with the Authorities and give the necessary notices before commencement of the works. Should the contractor fail to make such arrangements, admission to the site may be refused and any additional costs will be for the contractor's account.  F:......................  V:......................  T:..................... ","Item",0]
[]
[1,1,32,null,"E24  ENTRANCE PERMITS TO SECURITY AREAS","H3",0]
[]
[1,1,32,105,"If the works fall within a security area, the contractor shall obtain entrance permits for his personnel and workmen entering the area and shall comply with all regulations and instructions which may be issued from time to time regarding the protection of persons and property under control of the Authority.  F:.......................  V:.......................  T:...................... ","Item",0]
[]
[1,1,32,null,"E25  SECURITY CHECK OF PERSONNEL","H3",0]
[]
[1,1,32,106,"The principal agent may require the contractor to have his personnel and workmen, or a certain number of them, security classified. In the event of the principal agent requesting the removal of a person or persons from the works for security reasons, the contractor shall do so forthwith and shall thereafter ensure that such person or persons are denied access to the works and the site and/or to any document or information relating to the works.  F:....................... V:...................... T:....................... ","Item",0]
[]
[1,1,33,null,"E26  PROHIBITION ON TAKING PHOTOGRAPHS","H3",0]
[]
[1,1,33,107,"In terms of article 119 of the Defence Act, 44 of 1957, it is prohibited to sketch or to take photographs of any military site or installation or any building or civil works thereon or to be in possession of a camera or other apparatus used for taking photographs, except when authorised thereto by or on behalf of the Minister. The same prohibition is also applicable to all Correctional Institutions in terms of article 44.1(e) of the Correctional Services Act 8 of 1959.  F:........................ V:...................... T:...................... ","Item",0]
[]
[1,1,33,null,"E27  MANAGEMENT OF WATER","H3",0]
[]
[1,1,33,108," Water for Construction purposes must be obtained from alternative water sources (i.e. supply other than water that is produced and distributed by a regulated water service authority from a licenced water treatment works for human consumption), eg dams, rivers, boreholes, springs, rainwater harvesting, recycled sewerage water, etc. The alternative water source shall not be of an inferior quality / standard than that required for construction purposes. The client reserves the right through his agents to test such supplies or request certificates confirming the grade and nature of the water supply. Relevant knowledge of the respective area will be an advantage.   F:.....................  V:.....................  T:....................... ","Item",0]
[]
[1,1,34,null,"E28  ELECTRICITY CONSUMPTION","H3",0]
[]
[1,1,34,109,"The contractor will be responsible to remunerate the school with an amount of R 1200.00/month for electricityused on the site during the construction period and from site handover until works completion is reached and must make allowance in their preliminaries for such payment to the school on a monthly basis and if this is not paid, it will be deducted in the final account. The above mentioned electricity payments will onlybe applicable if the contractor make use of the school's electricity. However the school is not obligedto supply the contractor with electricity, and if so thecontractor must provide his own electricity for construction purposes. Contractors also need tofactor in the unavailability of electricity due to load shedding or any other disruptions and no claims withreference to any such disruptions will be entertained inrespect of time or money.   F:.....................  V:.....................  T:....................... ","Item",0]
[]
[]
[{"$nulls":4},"SUMMARY OF CATERGORIES"]
[{"$nulls":4},"Category :Fixed ___________"]
[{"$nulls":4},"Category :Value ___________"]
[{"$nulls":4},"Category :Time ___________"]
[]
[1,1,{"$nulls":4},0,null,{"$f":"+I37","v":{"v":0,"d":"0.00"}}]
[]
[2,1,47,null,"ALTERATIONS  BILL NO. 1  ALTERATIONS","H1",0]
[]
[2,1,47,null,"MODEL PREAMBLES","H2",0]
[]
[2,1,47,null,"The tenderer is referred to the \"Model Preambles for Trades 2008\" for supplementary and comprehensive expansion of descriptions, appropriate provision for which shall be deemed to have been included in all relevant rates",null,0]
[]
[2,1,47,null,"SUPPLEMENTARY PREAMBLES","H2",0]
[]
[2,1,47,null,"Existing Furniture, Equipment, etc","H3",0]
[]
[2,1,47,null,"The Contractor shall not remove or damage any furniture, equipment or similar items that belong to the Department except when specifically described in the items to follow: The Contractor must give the Principal Agent sufficient notice if the removal of these items are required before any prescribed alterations can be done",null,0]
[]
[2,1,48,null,"Damage to existing finishes","H3",0]
[]
[2,1,48,null,"The Contractor will be held responsible for all damage however caused to existing finishes and fittings, etc. and he must make good all damage at his own expense to the approval of the Principal Agent.  Breaking down, demolition and alteration activities and tasks, hacking off of exitsing plaster, etc. is to be executed with care so as to prevent damage to remaining floor and wall surfaces and finishes (where these are to be retained). Tenders will be deemed to include allowance for any necessary protection of exitsing surfaces and structures as may be necessary to effect the above, as the cost of repairing damage to existing surfaces and structures will be solely for the Contractors account",null,0]
[]
[2,1,48,null,"Responsibility for site","H3",0]
[]
[2,1,48,null,"The Contractor is to note that upon possession of the site by himself, and extending until practical completion is achieved, he is solely responsible for the site, site security, general upkeep and cleaning of the site and all other responsibilities in maintaining a construction site in conformance with but not limited to, the Construction Regulations 2014, all local by-laws, all user client regulations, and all Client regulations and procedures. Tenderers are therefore urged to study all available material and to investigate the site fully and areas contiguous to the site, in order to determine the range and extent of responsibility. No additional monetary and/or time claims will be entertained in respect of the above",null,0]
[]
[2,1,48,null,"Explosives","H3",0]
[]
[2,1,48,null,"No explosives whatsoever may be used for demolition purposes unless otherwise stated",null,0]
[]
[2,1,49,null,"General","H3",0]
[]
[2,1,49,null,"The Contractor shall carry out the whole of the works with as little mess and noise as possible and with a minimum amount of disturbance to adjoining classroom blocks and their students. He shall provide proper protection of the works and provide, erect and remove when directed, any temporary tarpaulins that may be necessary during the progress of the works, all to the satisfaction of the Principal Agent",null,0]
[]
[2,1,49,null,"Water supply pipes and other piping that may be encountered and found necessary to disconnect or cut, shall be effectually stopped off or grubbed up and removed, and any new connections that may be necessary shall be made with proper fittings, to the satisfaction of the Principal Agent",null,0]
[]
[2,1,49,null,"Doors, fanlights, fittings, frames, linings, etc which are to be re-used shall be thoroughly overhauled before refixing including taking off, easing and rehanging, cramping up, re-wedging as required and making good cramps, dowels, etc, and easing, oiling, adjusting and repairing ironmongery as necessary, replacing any glass damaged in removal or subsequently and stopping up all nail and screw holes with tinted plastic wood to match timber, unless otherwise described. Re-painting or re-varnishing is given separately",null,0]
[]
[2,1,49,null,"\"Taking out and removing doors, windows, etc\" implies that the door, etc is to be carefully taken down together with the fame, linings, architraves, window sills, etc complete and where brick lintels occur, it must be supported and propped until the openings are built up or new doors or windows built in position",null,0]
[]
[2,1,49,null,"Prices for taking out and removing doors and frames shall include for removing door stops, cabin hooks, etc. and making good floor and wall finishes to match existing",null,0]
[]
[2,1,50,null,"\"Forming openings\" for doors or windows, etc implies that the plaster or any other covering is to be hacked off and an opening formed sufficient in size to receive the building in of the frame and cramps, and the forming of new dampproof courses, lintels, sills, etc. After building in of the new frame, the opening is to be built against the frame, plaster or faced brickwork to be made good both sides and reveals and floor screeds prepared for finishings to match existing",null,0]
[]
[2,1,50,null,"\"Making good\" implies that all necessary repairs are to be made to reinstate articles that may be damaged through the removal or otherwise, and the supplying of any new materials to match existing work, and is to include any necessary repairs to adjacent finishings such as floors, skirtings, plaster, painting, etc and such making good is to match adjoining work in all respects and in all trades",null,0]
[]
[2,1,50,null,"The Contractor will be required to take all dimensions affecting the existing buildings on the site and he will be held solely responsible for the accuracy of all such dimensions where used in the manufacture of new items (doors, windows, fittings, etc)",null,0]
[]
[2,1,50,null,"The Contractor to acknowledge that sequencing of the work will be necessary to accommodate the operational aspects of the school. The Contractor to accordingly factor the above requirement in the construction programme and pricing",null,0]
[]
[2,1,50,null,"\"Breaking down and removing\" walls, etc implies that the wall is to be taken down to the extent shown on the drawings or as may be described and that all necessary shoring is to be provided and allowed for to ensure the safety of the building during the pulling down or until new walls are erected and all portions of the remaining walls where distrubed or affected by the removal are to be made good and left ready for plaster or other finishings as described",null,0]
[]
[2,1,51,null,"Where removal is included in the heading, sub-heading or item description, prices shall be deemed to include for the necessary costs of removal and appropriate disposal of materials including but not limited to labour, transportation and disposal costs. No further claims in this regard will be entertained",null,0]
[]
[2,1,51,null,"\"Building up openings\" implies that after the removal of any doors, windows or screens that may be decribed to be taken down, the opening is to be filled up solid (or to the tickness as shown) with new brickwork and is to include all necessary cutting away to form toothings to thoroughly bond to the new work and new finishes to both sides as described.",null,0]
[]
[2,1,51,null,"Removal of asbestos material","H3",0]
[]
[2,1,51,null,"All preparatory work, alterations, etc., to existing asbestos cement roof sheeting, gutters, rainwater pipes, etc., is to be carried out strictly by an approved and certified specialist company and in accordance with statutory requirements (Occupational Health and Safety Act, 1993 - Asbestos Regulations 2001) and all necessary precautions must be taken when working with and disposing of asbestos cement products and the disposal of waste water resulting from cleaning operations, etc.",null,0]
[]
[2,1,51,null,"The following shall apply in respect of asbestos removal","H3",0]
[]
[2,1,51,null,"The removal of asbestos shall be carries out by a certified entity, registered in accordance with the Occupational Health and Safety Act. 1993 and the Asbestos Regulations 2001  Asbestos in all forms/building elements that is to be removed, shall be carried out in strict accordance with aforementioned regulation and a certificate issued by the entity as contemplated in the above, shall be provided per block for the removal thereof, where the term block shall in this context refer to any single, free standing building structure, regardless of size or purpose",null,0]
[]
[2,1,52,null,"Corresponding disposal certificates shall be issued by the facility at which the asbestos is disposed off, with said facility to, prior to the disposal of any asbestos material provide satisfactory proof that the facility is duly registered and fully compliant in terms of the act, to receive the asbestos material  Under no circumstances is the Contractor nor any of his duly authorised representatives to sell and/or give away asbestos material to any member/s of the school community, the community in general or the public at large. Should this be found to be occuring, the Contractor will be held responsible contractually and may further be prosecuted ciminally",null,0]
[]
[2,1,52,null,"The cost for complying with the above, and all requirements of regulation as reflected above is to be priced for in terms for removal of asbestos material. No further claims in this regard will therefore be entertained",null,0]
[]
[2,1,52,null,"(CPAP WORK GROUP NO. 102 UNLESS OTHERWISE STATED)","H2",0]
[]
[2,1,52,null,"Temporary barriers, screens, etc including removal and allow for re-use","H3",0]
[]
[2,1,52,1,"SANS approved weld mesh type temporary barrier fencing and shade cloth 1,8m high fixed to and including 100mm diameter gum poles set securely min 300mm deep in ground at max 3m spacing including re-using barrier as the work progress as per the construction programme.  ","m",150,null,{"$f":"G440*H440","v":0}]
[]
[2,1,53,null,"Temporary protection and waterproofing of roofs","H3",0]
[]
[2,1,53,2,"Temporary waterproof and weatherproof protection of buildings  where roofing and related items have been removed during construction including the supply, installation and rotation of the temporary protection throughout the  contract period  as per the  construction program ","m2",494,null,{"$f":"G444*H444","v":0}]
[]
[2,1,53,null,"DEMOLISH","H2",0]
[]
[2,1,53,null,"Demolish & remove existing","H3",0]
[]
[2,1,53,3,"1475mm dia Circular Concrete Tank Stand","No",1,null,{"$f":"G450*H450","v":0}]
[]
[2,1,53,null,"REMOVAL OF EXISTING WORK","H2",0]
[]
[2,1,53,null,"Break down and remove brickwork etc","H3",0]
[]
[2,1,53,4,"M140 Blockwork in beamfill and small areas","m2",29,null,{"$f":"G456*H456","v":0}]
[]
[2,1,53,null,"Take out and remove doors, windows, etc from brickwork to remain","H3",0]
[]
[2,1,53,5,"Timber door and metal door frame 0,9 x 2,1m high in M140 block wall","No",5,null,{"$f":"G460*H460","v":0}]
[]
[2,1,53,6,"Timber door from metal door frame 0,9 x 2,1m high M140 block wall","No",1,null,{"$f":"G462*H462","v":0}]
[]
[2,1,53,7,"Glazed steel window 1,0 x 1,5m high from M140 block walls","No",5,null,{"$f":"G464*H464","v":0}]
[]
[2,1,54,null,"Take down and remove glass & mirrors","H3",0]
[]
[2,1,54,8,"Glass from steel windows including cleaning out rebates & preparing for new glass (new glass elsewhere)","m2",5,null,{"$f":"G468*H468","v":0}]
[]
[2,1,54,null,"Take down and remove roofs, floors, panelling, ceilings, partitions, etc","H3",0]
[]
[2,1,54,9,"Corrugated metal roof sheeting, including timber purlins, underlay etc. ","m2",469,null,{"$f":"G472*H472","v":0}]
[]
[2,1,54,10,"Timber roof structure comprising trusses, rafters, etc spaced at 1 200mm centres","m2",441,null,{"$f":"G474*H474","v":0}]
[]
[2,1,54,11,"Tiimber roof structure comprising rafters only.","m2",18,null,{"$f":"G476*H476","v":0}]
[]
[2,1,54,null,"Hack up/off & remove grano, screed, plaster & prepare surface to receive new","H3",0]
[]
[2,1,54,12,"30mm Screed from floors in patches","m2",336,null,{"$f":"G480*H480","v":0}]
[]
[2,1,54,13,"Internal plaster to brickwork in patches","m2",25,null,{"$f":"G482*H482","v":0}]
[]
[2,1,54,14,"External plaster to brickwork in patches","m2",50,null,{"$f":"G484*H484","v":0}]
[]
[2,1,54,null,"Alter Openings","H3",0]
[]
[2,1,54,15,"Alter opening in one brick wall where 1 300 x 1 100mm high steel window removed to form opening for new kitchen roller shutter door size 2 500 x 1 115mm high overall by breaking out blockwork on both sides and bottom, including making good cement plaster into reveals and with Reinforced brick lintel.","No",1,null,{"$f":"G488*H488","v":0}]
[]
[2,1,55,null,"STRUCTURAL REPAIRS","H2",0]
[]
[2,1,55,null,"Repairs to structural cracks, etc","H3",0]
[]
[2,1,55,16,"Rake out existing plater crack in blockwork, remove all debris/loose material including four times shot fixing 32 x 1,6mm thick strap x 500mm long at 500mm centres and plaster over (plaster measured elsewhere)","m",7,null,{"$f":"G494*H494","v":0}]
[]
[2,1,55,17,"Rake out existing major structural crack in blockwork, remove all debris/loose material including embedding steel rods, cutting or drilling slots (60mm deep) in brickwork at 250mm centres to embed 8mm mild steel bars fixed between mortar joints with injected epoxy resin","m",73,null,{"$f":"G496*H496","v":0}]
[]
[2,1,55,null,"SERVICE","H2",0]
[]
[2,1,55,null,"Steel Windows","H3",0]
[]
[2,1,55,18,"Service window including lubricating ironmongery and leave in workable condition (replacement of damaged/ missing ironmongery measured elsewhere)","No",51,null,{"$f":"G502*H502","v":0}]
[]
[2,1,55,null,"Inspection and Repairs of Existing Roofs","H3",0]
[]
[2,1,55,19,"The contractor is to carry out an inspection of the existing roofs, remove and replace all loose metal sheets, remove and replace damaged sisalation, and roof screws with approved new (8mm diameter with 26mm washers and rubber gasket) including the re-fixing of all looses roof sheets, in accordance to the manufacturer's instructions. ","m2",173,null,{"$f":"G506*H506","v":0}]
[]
[2,1,55,null,"SUNDRIES","H2",0]
[]
[2,1,56,null,"Desludging","H3",0]
[]
[2,1,56,null,"Debris and rubble covering the access to the pit latrine must be cleared and disposed of at a registered landfill site. The pit latrine is to be accessed by the removable cover or removal of the access concrete slab. The solids that cannot be pumped out must be dug out by mechanical means. When the contents of the pit or tank are to be pumped out and the sludge is too firm or dry it must be jetted with a high pressure hose and agitate the mixture of sludge and water with the end of the suction  hose before pumping begins. After pumping out the contents of the pit, the tanker must be driven to a legally authorised safe-disposal site, such as an off-site sewage treatment works, where the contents can be emptied. Dry pits or pits containing large quantities of solid materials incluidng stones, sticks, plastic bags, debris, etc. must be cleaned by individuals with hand held mechanical machinery with the appropriate protective gear in terms of the OHS Act as well as certified to work in confined spaces. Contractors are to ensure that the vacuum tankers are suitable to manoeuvre close to latrines without compromising the integrity of the pit latrine",null,0]
[]
[2,1,56,20,"Clean out pit latrine by desludging. Contractor to price per toilet seat approximately 2Kl in volume","No",8,null,{"$f":"G514*H514","v":0}]
[]
[2,1,56,null,"Temporary Accommodation","H3",0]
[]
[2,1,57,null,"Provide temporary accommodation units (park homes) for Educational Facilities during construction in phases as herewith measured including leveling of area, positioning on site and connected electrical supply including issue of electrical compliance certificate. Park homes to be standard size class room size and needs to be minimum 7 x 7m or nearest standard size","H3",0]
[]
[2,1,57,21,"Rental of temporary accommodation approximate size 7 x 7m wide, including standard windows, burglar bars, curtains and tracks, two tier steps for access, light fittings, electrical certificate of compliance, for a period of seven (7) calendar months","No",5,null,{"$f":"G520*H520","v":0}]
[]
[2,1,57,22,"Two tier steps for seven (7) Calendar months","No",5,null,{"$f":"G522*H522","v":0}]
[]
[2,1,57,23,"Electrical Compliance Certificate","No",5,null,{"$f":"G524*H524","v":0}]
[]
[2,1,57,24,"Transportation and establishment on site and de-establishment on completion temporary accommodation units approximate size 7 x 7m wide","No",5,null,{"$f":"G526*H526","v":0}]
[]
[2,1,57,null,"Temporary Ablutions","H3",0]
[]
[2,1,57,25,"Rental of temporary plastic ablutions approximate size 1,2 x 1,2 x 2,3m high for the sole use by the school, for 6 months inclusive of  servicing on a regular basis. Ablutions are to be kept clean and in operation for the duration","No",8,null,{"$f":"G530*H530","v":0}]
[]
[2,1,57,26,"Transportation and establishment on site and de-establishment on completion temporary ablutions approximate size 1,2 x 1,2 x 2,3m high","No",8,null,{"$f":"G532*H532","v":0}]
[]
[2,1,{"$nulls":4},0,null,{"$f":"SUM(I439:I533)","v":{"v":0,"d":"0.00"}}]
[]
[3,1,59,null,"NEW WORKS TO EXISTING BUILDINGS","H1",0]
[]
[3,1,59,null,"NEW WORKS TO EXISTING BUILDINGS  BILL NO. 1  MASONRY","H1",0]
[]
[3,1,59,null,"MODEL PREAMBLES","H2",0]
[]
[3,1,59,null,"The tenderer is referred to the \"Model Preambles for Trades 2008\" for supplementary and comprehensive expansion of descriptions, appropriate provision for which shall be deemed to have been included in all relevant rates",null,0]
[]
[3,1,59,null,"SUPPLEMENTARY PREAMBLES","H2",0]
[]
[3,1,59,null,"BRICKWORK","H2",0]
[]
[3,1,59,null,"(CPAP WORK GROUP NO. 116 UNLESS OTHERWISE STATED)","H2",0]
[]
[3,1,59,null,"Sizes in descriptions","H3",0]
[]
[3,1,59,null,"Where sizes in descriptions are given in brick units, \"one brick\" shall represent the length and \"half brick\" the width of a brick",null,0]
[]
[3,1,59,null,"Bricks","H3",0]
[]
[3,1,59,null,"Clay & concrete bricks are to comply with N.H.B.R.C Part 2, Section 3",null,0]
[]
[3,1,60,null,"Hollow walls etc ","H3",0]
[]
[3,1,60,null,"Descriptions of hollow walls shall be deemed to include leaving every fifth perpend of the bottom course of the external skin open as a weep hole. ",null,0]
[]
[3,1,60,null,"Walls in two skins described as \"bagged and sealed\" shall be deemed to include having the outer face of the inner skin bagged with 1:6 cement and sand mixture and sealed with two coats \"Brixeal\" bitumen emulsion waterproofing coating.",null,0]
[]
[3,1,60,null,"Pointing","H3",0]
[]
[3,1,60,null,"All pointing of exposed joints to be concave",null,0]
[]
[3,1,60,null,"Samples","H3",0]
[]
[3,1,60,null,"Samples of all masonry building units, except those of walls described as \"loadbearing\", shall consist of a minimum of 6 units. Samples of building units to be used in walls described as \"loadbearing\" shall consist of 30 units from every 30 000 units delivered to site",null,0]
[]
[3,1,60,null,"BLOCKWORK","H2",0]
[]
[3,1,60,null,"Concrete masonry units","H3",0]
[]
[3,1,60,null,"Blocks are to be either solid or hollow modular dense concrete masonry units having a compressive strength of 7 MPa",null,0]
[]
[3,1,60,null,"Wall ties for blockwork","H3",0]
[]
[3,1,60,null,"Wall ties shall be polypropylene \"Permaties\" complying with BS 76377.  Ties for hollow walls shall be of sufficient length to allow not less than 75mm of each end to be built into the blockwork.  Ties are to be spaced at intervals of not more than 1m in the horizontal direction and not more than 400mm staggered in the vertical direction except at openings, vertical joints or ends of walls where they are to be placed vertically above each other",null,0]
[]
[3,1,61,null,"Blockwork ","H3",0]
[]
[3,1,61,null,"Blockwork shall comply with SABS 0145 \"Concrete Masonry Construction\" ",null,0]
[]
[3,1,61,null,"Surfaces to be plastered shall have joints raked out to a depth of at least 10mm to provide a key.  Cavities of hollow walls shall be kept free of mortar droppings or other undesirable matter. Every second perpend of the bottom course of the external skin of hollow walls shall be left open as a weep hole",null,0]
[]
[3,1,61,null,"Standard complementary blocks","H3",0]
[]
[3,1,61,null,"Descriptions of blockwork shall be deemed to include standard complementary blocks such as corner, three-quarter, half and quarter blocks required in the construction of corners, reveals, jambs, ends, etc to solid and hollow walls and for bonding as necessary",null,0]
[]
[3,1,61,null,"SUPERSTRUCTURE","H2",0]
[]
[3,1,61,null,"3,5MPa Cement blocks in class II mortar","H3",0]
[]
[3,1,61,1,"M140 block wall in beamfilling","m2",29,null,{"$f":"G596*H596","v":0}]
[]
[3,1,61,null,"BRICKWORK SUNDRIES","H2",0]
[]
[3,1,61,null,"Galvanized brickwork reinforcement","H3",0]
[]
[3,1,61,2,"150mm Wide reinforcement built in horizontally","m",96,null,{"$f":"G602*H602","v":0}]
[]
[3,1,61,null,"15MPa Mass concrete ","H3",0]
[]
[3,1,61,3,"Infill to single row of M140 U block blockwork","m",96,null,{"$f":"G606*H606","v":0}]
[]
[3,1,{"$nulls":4},0,null,{"$f":"SUM(I595:I607)","v":{"v":0,"d":"0.00"}}]
[]
[3,2,63,null,"NEW WORKS TO EXISTING BUILDINGS  BILL NO. 2  ROOF COVERINGS","H1",0]
[]
[3,2,63,null,"MODEL PREAMBLES","H2",0]
[]
[3,2,63,null,"The tenderer is referred to the \"Model Preambles for Trades 2008\" for supplementary and comprehensive expansion of descriptions, appropriate provision for which shall be deemed to have been included in all relevant rates",null,0]
[]
[3,2,63,null,"SUPPLEMENTARY PREAMBLES","H2",0]
[]
[3,2,63,null,"Sheeting","H3",0]
[]
[3,2,63,null,"The roof sheeting shall be 0,55mm AZ150 White ZincAl or equal approved IBR 686 profile roll-formed in continuous lengths and cut to length by a pneumatic cut-off process from certified Z275 galvanized steel complying with ISQ 550 (3T). A certificate verifying compliance shall be issued by the manufacturer. ",null,0]
[]
[3,2,63,null,"Finish for AZ150 Zincalume","H3",0]
[]
[3,2,63,null,"The profile shall be supplied with a paint finish G550 consisting of a full top coat \"Colourplus\" or equal approved silicone modified polyester Colour: To match existing on one side and Cool Grey backing to other",null,0]
[]
[3,2,64,null,"Assembly","H3",0]
[]
[3,2,64,null,"The AZ150 ZincAl sheets shall be fixed to every purlin strictly in accordance with manufacturer's specifications. Holes through sheeting are to be drilled and NO punching of holes are allowed. 8mm Diameter x 75mm long fixing screws with 26mm diameter washer and rubber gasket are to be used. Every precaution shall be taken to prevent damage to roof sheets during all stages of construction. Duck boards should be used when necessary to protect the sheeting from damage. Sheeting which has become deformed or damaged in any way, shall be replaced",null,0]
[]
[3,2,64,null,"Flashings","H3",0]
[]
[3,2,64,null,"Flashings shall be approved by roof sheeting manufacturer and fixed to the sheeting with S10 clips to obviate any direct fixing perforations. Prior to flashings being fixed, all troughs at the apex shall be stop-ended to the full depth of the sheet in order to prevent any penetration of wind drived water. The trough shall be lipped at the eaves end to form a drip. Flashing flanges shall be notched to the sheet profile where necessary. All these operations must be performed with special tools available from the manufacturer. Care shall be taken to ensure that no sheeting or flashing will be cut with abrasive disc on roof surface in order to prevent steel splatter from penetrating colour coated areas. The flashings shall be supplied with a paint finish consisting of a full top coat silicon modified polyester Colour : White to one side",null,0]
[]
[3,2,64,null,"Quality Assurance","H3",0]
[]
[3,2,64,null,"The manufacturer shall be assessed and certifed as complying with ISO 9001: 2008 Quality Management System",null,0]
[]
[3,2,65,null,"Guarantee","H3",0]
[]
[3,2,65,null,"AZ150 ZincAl or equal approved sheeting shall be laid in strict accordance with manufacturer's specifications by an approved contractor. The employer shall be provided with a ten year written guarantee on materials and a five year written guarantee on workmanship and water-tightness after final inspection of the roofs, by the manufacturer.  ",null,0]
[]
[3,2,65,null,"Safety","H3",0]
[]
[3,2,65,null,"The contractor shall exercise special care when handling long length sheeting, particularly in windy conditions. Should work be interrupted for any reason, all loose sheeting and incomplete sections must be adequately secured against possible movement by wind and gravity",null,0]
[]
[3,2,65,null,"Handling and Storage","H3",0]
[]
[3,2,65,null,"The contractor shall ensure that all materials used on site for cladding, etc are transported, handled and stored in accordance with the manufacturer's recommendations. Material damaged shall be rejected and replaced with undamaged material at the contractor's expense. Repair of damaged material will not generally be permitted. Rates are to include for preventing damage and protecting sheets through all stages of construction",null,0]
[]
[3,2,66,null,"Inspection Prior to Installation or Erection","H3",0]
[]
[3,2,66,null,"Before commencing with installation, the contractor shall verify that the following items have been checked and accepted: a. The entire structure or the portion thereof to be sheeted has been correctly aligned, levelled and grouted b. Purlins and sheeting rails are at the correct spacing and are within the specified tolerances c. The corners of the roof are square and the wall framework is perpendicular or as specified d. No protrusions such as bolt heads, splice plates, cleats, etc. appear on the face of the framework e. All members to which roofing and cladding are to be fixed in aesthetically sensitive areas are true and square f. Paint and any other materials that may be incompatible with the sheeting, have been painted over or so dealt with that direct contact with the sheeting is avoided g. The contact faces between the purlins or the girts and the cladding are in the same plane. Should the alignment be inadequate, the contractor shall request instructions from the engineer before proceeding with the fixing of the cladding",null,0]
[]
[3,2,66,null,"Protrusion through Sheeted Surfaces","H3",0]
[]
[3,2,66,null,"Protrusions such as pipes, ducts and the like, shall be adequately flashed where they pass through the sheeting surface. Where ribs have to be cut away to permit penetration, additional framing is to be installed as required to support the sheeting. Depending on the position of the penetration through the roof, special attention shall be given to back flashing the sheeting to the ridge or point of water entry. In all cases, all cutting and flashings shall be so arranged that adequate provision is made for the drainage of all troughs and corrugation ",null,0]
[]
[3,2,67,null,"Cleaning of Roofs, etc","H3",0]
[]
[3,2,67,null,"All debris, etc arising from the fixing of the cladding shall be removed from the sheetin as the fixing progresses. In addition, off-cuts of insulation, surplus fastners and sealants, mandrels from pop rivets, off-cuts of flashings and sheeting, surplus flashing, food packaging, cartons, bottles, cans, etc shall not be  left on the roof or in the gutters. Care shall be taken to ensure that no such material enters, blocks or partially impedes the flow of water into the outlets, downpipes, etc",null,0]
[]
[3,2,67,null,"ROOF COVERING","H2",0]
[]
[3,2,67,null,"(CPAP WORK GROUP NO. 125 UNLESS OTHERWISE STATED)","H2",0]
[]
[3,2,67,null,"PROFILED METAL SHEETING AND ACCESSORIES","H2",0]
[]
[3,2,67,null,"0,55mm Zincalume IBR 686 sheeting and accessories with \"Colorplus\"  finish (colour : Standard colour on one side and CoolGrey backing to other), in long lengths fixed using Class 3 Climaseal screws (26mm diameter with washer and rubber gasket) as per manufacturer's recommendations for coastal areas to 50 x 76mm treated SA Pine purlins @ 900mm centres on Sisalation elsewhere measured ","H3",0]
[]
[3,2,67,1,"Roof covering with pitch not exceeding 25 degrees","m2",516,null,{"$f":"G670*H670","v":0}]
[]
[3,2,67,2,"Ridge covering 650mm girth, screwed through sheet to purlins","m",48,null,{"$f":"G672*H672","v":0}]
[]
[3,2,67,3,"Color coded metal angle flashing made from the same roofing sheet material and the same color with size 200 x 100mm and inner drip edges as well as outer drip edge, bent at 2.5 degrees respectively, fixed to fascia through the roof sheeting to the purlins. ","m",31,null,{"$f":"G674*H674","v":0}]
[]
[3,2,68,4,"Sidewall flashing, screwed through sheet to purlins and counter flashing. Counter flashing to be grooved and sealed into plastered wall","m",8,null,{"$f":"G676*H676","v":0}]
[]
[3,2,68,5,"Moulded narrow and broad rib polyethelene filler blocks","m",92,null,{"$f":"G678*H678","v":0}]
[]
[3,2,68,6,"Moulded Sondor Metal Polyclosures for IBR roof sheeting profile color coated. ","m",92,null,{"$f":"G680*H680","v":0}]
[]
[3,2,68,null,"ROOF AND WALL INSULATION","H2",0]
[]
[3,2,68,null,"\"Sisalation 420\"  or equal approved heavy industrial grade aluminium foil based insulation","H3",0]
[]
[3,2,68,7,"Insulation laid taut over rafters (at approximately 1 200mm centres) and fixed concurrent with purlins, etc including galvanised steel straining wires","m2",387,null,{"$f":"G686*H686","v":0}]
[]
[3,2,68,8,"Allow for insulation joints to be taped with approved Sisalation Duct tape","Item",1,null,{"$f":"G688*H688","v":0}]
[]
[3,2,{"$nulls":4},0,null,{"$f":"SUM(I669:I689)","v":{"v":0,"d":"0.00"}}]
[]
[3,3,70,null,"NEW WORKS TO EXISTING BUILDINGS  BILL NO. 3  CARPENTRY & JOINERY","H1",0]
[]
[3,3,70,null,"MODEL PREAMBLES","H2",0]
[]
[3,3,70,null,"The tenderer is referred to the \"Model Preambles for Trades 2008\" for supplementary and comprehensive expansion of descriptions, appropriate provision for which shall be deemed to have been included in all relevant rates",null,0]
[]
[3,3,70,null,"CARPENTRY AND JOINERY","H2",0]
[]
[3,3,70,null,"(CPAP WORK GROUP NO. 126 UNLESS OTHERWISE STATED)","H2",0]
[]
[3,3,70,null,"SUPPLEMENTARY PREAMBLES","H2",0]
[]
[3,3,70,null,"ROOFS ETC","H3",0]
[]
[3,3,70,null,"MONOPLANAR PREFABRICATED METAL CONNECTORED TIMBER ROOF TRUSSES","H4",0]
[]
[3,3,70,null,"All trusses to be fabricated in a factory by a truss fabricator who holds a current Certificate of Competence awarded by the Institute for Timber Construction  TR1 & TR2 Certificates are to be issued for each Block before occupation may take place",null,0]
[]
[3,3,71,null,"PREFABRICATED ROOF TRUSSES HAVING A PITCH NOT EXCEEDING 25 DEGREES ","H4",0]
[]
[3,3,71,null,"NOTE: All timber roof trusses including nail-plated trusses and bolted trusses with lapped members must comply with SABS 0243 : THE DESIGN, MANUFACTURE AND ERECTION OF TIMBER TRUSSES",null,0]
[]
[3,3,71,null,"Prices for roof trusses are to include for all temporary bracing and supports and for all necessary top and bottom chord bracing, wind bracing and runners where required and TR1 and TR2 Certificates",null,0]
[]
[3,3,71,null,"TIMBER","H4",0]
[]
[3,3,71,null,"Timber for trusses to be South African softwood structural timber and shall be at least of grade 4 and in accordance with SABS Specification No.'s 563 or 1245 or laminated timber in accordance with SABS 1460",null,0]
[]
[3,3,71,null,"METAL CONNECTOR PLATES","H4",0]
[]
[3,3,71,null,"Metal truss connector plates shall be made from galvanised steel of at least 1mm nominal thickness, with a minimum yield strength of 250MPa and a minimum ultimate tensile strength of 330MPa. The corrosion resisting coating shall be 0,275Kg/m2 commercial class hot dipped galvanising  The connector plates shall have been tested by the CSIR and be a size capable of transmitting the forces between the members of a truss without exceeding the design values given in the CSIR report",null,0]
[]
[3,3,71,null,"BOLTS","H4",0]
[]
[3,3,71,null,"Bolts shall be to BS 4190 or SABS 135 with appropriate washers. (See below)",null,0]
[]
[3,3,72,null,"WASHERS","H4",0]
[]
[3,3,72,null,"Square or round washers of the following minimum dimensions shall be used with all bolts:                    WASHER DIMENSIONS  Bolts Size            Width (mm)           Thickness   up to M8 "]
[]
[3,3,72,null,"SHEAR PLATES, TOOTH CONNECTORS AND SPLIT RINGS","H4",0]
[]
[3,3,72,null,"These shall be as specified in BS 1579 and installed in accordance with the CSIR Publication : HOUT 468, \"The Design, Manufacture and Erection of Timber Trusses\".",null,0]
[]
[3,3,72,null,"NAILS","H4",0]
[]
[3,3,72,null,"These shall be in accordance with SABS 820 : 1974",null,0]
[]
[3,3,72,null,"TRUSS CONSTRUCTION","H4",0]
[]
[3,3,72,null,"The trusses shall be constructed to ensure the correct profile, overhangs and cambers  All joints are to be close fitting butt joints made by precision pressing of the metal connector plates into each side of the joint  ",null,0]
[]
[3,3,72,null,"TRUSS DESIGN","H4",0]
[]
[3,3,72,null,"All trusses shall be designed by a registered Professional Engineer employed by the Contractor in accordance with the SABS Code of Practice for the Design of Timber Structures SABS 0163 and the Code of Practice for General Procedures and Loadings SABS 0160",null,0]
[]
[3,3,72,null,"TRUSS SPACING","H4",0]
[]
[3,3,72,null,"The truss centres shall be less than or equal to that described in the Bills for each respective truss type",null,0]
[]
[3,3,73,null,"DRAWINGS","H4",0]
[]
[3,3,73,null,"Prints shall be provided to the consulting engineer/ architect for approval. These drawings shall be signed by a Professional Engineer  The following minimum information shall be supplied: * Details of the roof system with the positions of all trusses and beams clearly indicated * Bracing details * All truss details, including valley trusses where applicable, with the following clearly detailed:- =- All member sizes and grades - Connector plate sizes for all truss joints. Code numbers are deemed sufficient * All connection and hold down details between trusses, girders, beams and supports * The type of roof covering, ceiling and any other loads taken into account in the design",{"$nulls":3},"0.0"]
[]
[3,3,73,null,"The dimensions in the descriptions of trusses are nominal and verification measurements are to be obtained from site before design or fabrication commences, and must be designed in accordance with the environmental conditions of the area",null,0]
[]
[3,3,73,null,"GENERAL","H4",0]
[]
[3,3,73,null,"The following schedule of prices includes all timber of the required grade and type shown on the designs, all cutting and waste, cutting to exact length and end angles necessary to manufacture the respective truss types, the supply of all connector plates, fabrication of the trusses, checking the completed truss for quality, as well as loading, transporting to the site and offloading  The trusses must be suitable stored and protected on site as directed by the Secretary or his Representative",null,0]
[]
[3,3,74,null,"ERECTION","H4",0]
[]
[3,3,74,null,"The trusses are to be hoisted and erected strictly in accordance with the procedures and recommendations of the Manual \"The Erection and Bracing of Timber Roof Trusses\" published by the Institute for Timber Construction and the Council for Scientific and Industrial Research of as detailed by the designer of the SABS Code of Practice: \"The Design, Manufacture and Erection of Timber Roof Trusses\"",null,0]
[]
[3,3,74,null,"TRUSS LOADING","H4",0]
[]
[3,3,74,null,"The trusses shall be designed for:* Roof Cover:   0,55mm Metal roof sheeting* Max Purlin centres:   900mm * Ceilings:   Plasterboard ceilings * Overhang:    Min 600mm"]
[]
[3,3,75,null,"TRUSSES","H4",0]
[]
[3,3,75,null,"a. All the roof trusses to be at average 1 177mm centres and constructed for approximable 15deg pitch unless otherwise stated  b. All the roof trusses to be designed and constructed with softwood structural timber to include for live loads, wind loads and to take corrugated roof covering, purlins and fibre cement or plasterboard ceilings with brandering. Each roof truss shall have all its members accurately cut and close butted together and rigidly fixed by CSIR approved patented galvanized metal spiked connectors, fixed on both sides of each intersection by an approved method, all in accordance with the manufacturer's instructions  c. Unless otherwise described all rafter feet are to extend 600mm beyond the length of the tie beam, with ends twice splay cut  d. Upon completion of the contract the Registered Professional Engineer must issue to the Principal Agent a certificate to the effect that the roof has been erected in accordance with his approved design, under his supervision and that the entire roof is structurally stable. The lump sum price of the roof trusses and purlins or battens (bottom purlin or tilting fillet to be wrought) shall include for the design and supervision by a Registered / Professional Engineer and for all necessary runners, overhangs wrought all round and trimmed and splay cut as required, braces, hoisting and fixing, etc.,but shall exclude fixing brackets and hurricane clips, wall plates, fascia, barge boards, roof coverings, purlins, etc. which are all separately measured",null,0]
[]
[3,3,76,null,"e. The tenderer's attention is drawn to the fact that the description of the trusses only represents the overall size (fascia to fascia) and not the required design  f. Erection must be carried out as described in \"The Erection and Bracing of Timber Roof Trusses\" published by the Truss Plate Association of South Africa Ltd. and the National Timber Research Institute, CSIR  g. Descriptions of roof trusses shall be deemed to include for design, manufacture, supply, hoisting and fixing in position, trimming ends, notching, etc. and for any temporary bracing",null,0]
[]
[3,3,76,null,"Plate nailed pitched timber roof construction","H3",0]
[]
[3,3,76,null,"Sawn Softwood","H3",0]
[]
[3,3,76,1,"Design, supply and install roof truss system complete in accordance with the Standard Building Regulations to suit roof area approximate size 464m2 (measured on flat floor area inclusive of overhangs, etc) - Block A","Item",1,null,{"$f":"G780*H780","v":0}]
[]
[3,3,76,2,"76 x 50mm Purlins ","m",669,null,{"$f":"G782*H782","v":0}]
[]
[3,3,76,3,"76 x 50mm Cross bracing","m",91,null,{"$f":"G784*H784","v":0}]
[]
[3,3,76,4,"38 x 114mm Timber rafter","m",24,null,{"$f":"G786*H786","v":0}]
[]
[3,3,76,5,"76 x 114mm False rafter fixed to rafter ends to receive fascia boards (elsewhere measured)","m",124,null,{"$f":"G788*H788","v":0}]
[]
[3,3,76,6,"45 x 231 Grade 8 H2 spec Laminated Pine Beam","m",48,null,{"$f":"G790*H790","v":0}]
[]
[3,3,77,7,"50 x 185mm x 1mm thick Mitek eCo galvanised steel long truss hanger, fixed to tie beam with 35mm x 3,15mm diameter MiTek eCo Permafix mild steel collar nails and fixed to concrete filled blockwork with 4 x M12 chemical anchors","No",82,null,{"$f":"G792*H792","v":0}]
[]
[3,3,77,8,"Hurricane clips","No",1148,null,{"$f":"G794*H794","v":0}]
[]
[3,3,77,9,"Prior to the erection of all the roof trusses the consulting engineer shall certify that he has received such working drawings and construction detail designs from the professional engineer employed by the contractor and that he has considered same and given permission to proceed with the fabrication of the trusses (TR1 certificate issued by Contractor's Engineer) and then before the roof covering commences the completed structure shall be inspected and certifed as stable by the professional engineer employed by the contractor to ensure that the manufacture of the trusses and erection details have been complied with to his satisfaction (TR2 certificate issued by Contractor's Engineer) ","Item",1,null,{"$f":"G796*H796","v":0}]
[]
[3,3,77,null,"EAVES, VERGES, ETC","H2",0]
[]
[3,3,77,null,"Approved fibre cement","H3",0]
[]
[3,3,77,10,"12 x 225mm Fascias including H-profile jointing strips","m",96,null,{"$f":"G802*H802","v":0}]
[]
[3,3,77,11,"12 x 225mm fascia to gable ends, including H-profile jointing strips","m",25,null,{"$f":"G804*H804","v":0}]
[]
[3,3,77,null,"DOORS ETC","H2",0]
[]
[3,3,77,null,"Contractor to confirm door size on site prior to purchasing as any adjustment required to be made to the doors should be made by the manufacturer and not carried out on site",null,0]
[]
[3,3,78,null,"SANS approved Meranti","H3",0]
[]
[3,3,78,12,"44mm SABS approved Framed ledged braced door 813 x 2 032mm high ","No",6,null,{"$f":"G812*H812","v":0}]
[]
[3,3,{"$nulls":4},0,null,{"$f":"SUM(I779:I813)","v":{"v":0,"d":"0.00"}}]
[]
[3,4,80,null,"BILL No. 4 : CEILINGS, PARTITIONS & ACCESS FLOORING","H1",0]
[]
[3,4,80,null,"MODEL PREAMBLES","H2",0]
[]
[3,4,80,null,"The tenderer is referred to the \"Model Preambles for Trades 2008\" for supplementary and comprehensive expansion of descriptions, appropriate provision for which shall be deemed to have been included in all relevant rates",null,0]
[]
[3,4,80,null,"SUPPLEMENTARY PREAMBLES","H2",0]
[]
[3,4,80,null,"Descriptions:","H3",0]
[]
[3,4,80,null,"Items described as \"nailed\" shall be deemed to be fixed with hardened steel nails or pins or shot pinned to brickwork or concrete",null,0]
[]
[3,4,80,null,"Trade Names","H3",0]
[]
[3,4,80,null,"Where trade names are specified equal materials approved by the Principal Agent may be used",null,0]
[]
[3,4,80,null,"CEILINGS","H2",0]
[]
[3,4,80,null,"(CPAP WORK GROUP NO. 128 UNLESS OTHERWISE STATED)","H2",0]
[]
[3,4,80,null,"CEILINGS ETC","H2",0]
[]
[3,4,80,null,"SABS approved flexible non-combustible lightweight insulation","H3",0]
[]
[3,4,80,1,"100mm  Insulation loosely laid on top of brandering between roof timbers etc strictly in accordance with the manufacturer's detail and specification","m2",336,null,{"$f":"G840*H840","v":0}]
[]
[3,4,81,null,"NAILED UP CEILINGS","H2",0]
[]
[3,4,81,null,"9.5mm SABS approved gypsum plasterboard with taped & skimmed joints","H3",0]
[]
[3,4,81,2,"Ceilings including 38 x 38mm sawn softwood brandering at 500mm centres in one direction, complete.","m2",336,null,{"$f":"G846*H846","v":0}]
[]
[3,4,81,3,"Extra  over  ceiling  for  850  x  850mm trap door","No",5,null,{"$f":"G848*H848","v":0}]
[]
[3,4,81,null,"Gypsum Plasterboard Cornice","H3",0]
[]
[3,4,81,4,"75mm Coved cornice","m",180,null,{"$f":"G852*H852","v":0}]
[]
[3,4,{"$nulls":4},0,null,{"$f":"SUM(I839:I853)","v":{"v":0,"d":"0.00"}}]
[]
[3,5,83,null,"NEW WORKS TO EXISTING BUILDINGS  BILL NO. 5  IRONMONGERY","H1",0]
[]
[3,5,83,null,"MODEL PREAMBLES","H2",0]
[]
[3,5,83,null,"The tenderer is referred to the \"Model Preambles for Trades 2008\" for supplementary and comprehensive expansion of descriptions, appropriate provision for which shall be deemed to have been included in all relevant rates",null,0]
[]
[3,5,83,null,"SUPPLEMENTARY PREAMBLES","H2",0]
[]
[3,5,83,null,"Keys/Locks","H3",0]
[]
[3,5,83,null,"Each lock is to be distinctly numbered with consecutive numbers and each key is to be stamped with the corresponding number to the lock that it controls. All locks are to have two keys",null,0]
[]
[3,5,83,null,"Trade Names","H3",0]
[]
[3,5,83,null,"Where trade names are specified other ironmongery approved by the Principal Agent may be used",null,0]
[]
[3,5,83,null,"Fixing","H3",0]
[]
[3,5,83,null,"Fixing of ironmongery is deemed to be fixed to timber unless otherwise described",null,0]
[]
[3,5,83,null,"IRONMONGERY","H2",0]
[]
[3,5,83,null,"(CPAP WORK GROUP NO. 132 UNLESS OTHERWISE STATED)","H2",0]
[]
[3,5,84,null,"HINGES, BOLTS, ETC","H2",0]
[]
[3,5,84,null,"SABS Approved","H3",0]
[]
[3,5,84,1,"150mm Stainless steel cabin hook","No",6,null,{"$f":"+G884*H884","v":0}]
[]
[3,5,84,null,"LOCKS","H2",0]
[]
[3,5,84,null,"SABS Approved","H3",0]
[]
[3,5,84,2,"Three lever mortice lockset and furniture to external door","No",6,null,{"$f":"G890*H890","v":0}]
[]
[3,5,84,null,"HANDLES","H2",0]
[]
[3,5,84,null,"SABS Approved","H3",0]
[]
[3,5,84,3,"Set of two 111mm pull handles fixed back to back","No",6,null,{"$f":"G896*H896","v":0}]
[]
[3,5,84,null,"WINDOW FITTINGS","H2",0]
[]
[3,5,84,null,"SABS Approved","H3",0]
[]
[3,5,84,4,"Brass plated sliding stay to existing steel window ","No",11,null,{"$f":"G902*H902","v":0}]
[]
[3,5,84,5,"Brass plated casement stay to existing steel window ","No",7,null,{"$f":"G904*H904","v":0}]
[]
[3,5,84,6,"Brass plated window handle to existing steel window ","No",14,null,{"$f":"G906*H906","v":0}]
[]
[3,5,84,null,"SUNDRIES","H2",0]
[]
[3,5,84,null,"SABS Approved","H3",0]
[]
[3,5,84,7,"38mm Diameter rubber floor/wall mounted door stop ","No",6,null,{"$f":"G912*H912","v":0}]
[]
[3,5,85,null,"PINNING BOARDS, WRITING BOARDS, PROJECTION SCREENS, ETC","H2",0]
[]
[3,5,85,8,"2400 x 1200mm High, wall mounted aluminium framed pinning board. ","No",6,null,{"$f":"G916*H916","v":0}]
[]
[3,5,85,9,"2420 x 1220mm fixed projection white board (non reflective) aluminium framed, magnetic surface (centre board) complete with (x2) 1210 x 1220mm swing leaf aluminium framed magnetic chalk boards (without any lines or graphics, etc) with heavy duty hinges and 2250mm one complete aluminium pen tray to the centre board.","No",5,null,{"$f":"G918*H918","v":0}]
[]
[3,5,85,10,"Magnetic Starter Pack (x1 Full Complete Set) consisting of:  4 x White board markers (Red, Green, Black, Blue) 1 x Cleaning Cloth 1 x Magnetic Eraser 1 x Cleaning Fluid 250ml 4 x Moulded magnets d day","No",5,null,{"$f":"G920*H920","v":0}]
[]
[3,5,85,null,"PUSH PLATES AND KICKING PLATES","H2",0]
[]
[3,5,85,null,"\"Solid\"","H3",0]
[]
[3,5,85,11,"800mm x 200mm high x 2mm aluminium screw mounted kick plate. ","No",12,null,{"$f":"G926*H926","v":0}]
[]
[3,5,{"$nulls":4},0,null,{"$f":"SUM(I883:I927)","v":{"v":0,"d":"0.00"}}]
[]
[3,6,87,null,"NEW WORKS TO EXISTING BUILDINGS  BILL NO. 6  METALWORK","H1",0]
[]
[3,6,87,null,"MODEL PREAMBLES","H2",0]
[]
[3,6,87,null,"The tenderer is referred to the \"Model Preambles for Trades 2008\" for supplementary and comprehensive expansion of descriptions, appropriate provision for which shall be deemed to have been included in all relevant rates",null,0]
[]
[3,6,87,null,"SUPPLEMENTARY PREAMBLES","H2",0]
[]
[3,6,87,null,"The Contractor is to check and verify on site that the item specified in the BoQ matches existing prior to placing orders. Additional costs will not be borne by the client for items that do not match existing and are not approved by the Principal Agent",null,0]
[]
[3,6,87,null,"METALWORK","H2",0]
[]
[3,6,87,null,"(CPAP WORK GROUP NO. 136 UNLESS OTHERWISE STATED)","H2",0]
[]
[3,6,87,null,"GALVANIZED STEEL WINDOWS, DOORS, ETC","H2",0]
[]
[3,6,87,null,"Residential Type Windows","H3",0]
[]
[3,6,87,1,"D2H Window 1 022 x 1 245mm high to match existing with and including factory fitted burglar bars","No",5,null,{"$f":"G948*H948","v":0}]
[]
[3,6,87,null,"PRESSED STEEL DOOR FRAMES","H2",0]
[]
[3,6,88,null,"GALVANIZED PRESSED STEEL DOOR FRAMES","H2",0]
[]
[3,6,88,null,"1,6mm galvanised mild steel standard pressed jamb lining with double rebates to suit one brick wall:","H3",0]
[]
[3,6,88,2,"Frame for door 813 x 2032mm high.","No",6,null,{"$f":"G956*H956","v":0}]
[]
[3,6,88,null,"ROLLER SHUTTER DOORS","H2",0]
[]
[3,6,88,null,"Steel roller shutter doors:","H3",0]
[]
[3,6,88,null,"Note: The contractor is to check on site measurements before placing of order.","H4",0]
[]
[3,6,88,3,"Push-up hot dip galvanised steel roller shutter door to suit opening size 2,500 x 1,115mm high, with overhead box, with 0.8mm thick slats, 75mm wide side guides and two barrel bolts including extruded aluminium T-bar formed of 40 x 40mm angle iron, with rubber seal.","No",1,null,{"$f":"G964*H964","v":0}]
[]
[3,6,88,null,"GALVANISED MILD STEEL GATES","H2",0]
[]
[3,6,89,null,"Gate constructed from hot-dipped galvanized mild steel, consisting of 40 x 30 x 2mm thick rectangular hollow section to outer frame and horizontal rails. Infill to be 8 No. continuous 10mm diameter galvanised mild steel rods passing through and welded to horizontal rails and welded to outer frame. Lock housing to be formed of (2 Off) 10 x 180 x 3mm galvanised mild steel plates welded to finish flush with each face of the gate and is to have the necessary cut-outs for the lock deadbolt and Euro Profile cylinder.Frame stile to hinge side to be 30 x 30 x 2mm thick galvanised mild steel hollow square section 2m long, bolted to wall with (4 Off) expansion bolts. 30 x 30 x 2mm thick galvanised mild steel hollow square section 260mm long, twice bolted to wall as lock keep. End caps to be provided to both the frame stile and the lock keep.1,5 pairs galvanised mild steel pintle hinges welded to gate and frame stile. Pin of top hinge to be inverted. (1 Off)  Cylinder Gate Lock with  housing and 2 x  double cylinder. (1 Off)  cabin hook and eye with cabin hook screwed to 100 x 70 x 32mm Meranti block plugged and screwed to wall, and eye welded to leading edge of gate outer frame Gate is to be cleaned down on completion and left unpainted","H3",0]
[]
[3,6,89,4,"Single gate size 1 000 x 2 000mm complete fixed to blockwork","No",6,null,{"$f":"G970*H970","v":0}]
[]
[3,6,89,null,"GALVANIZED STEEL BURGLAR BARS","H2",0]
[]
[3,6,89,null,"4,7mm x 19mm galvanised mild steel burglar bars welded to window frame over both opening and fixed sections of window horizontally","H3",0]
[]
[3,6,89,5,"Bars at 150mm centres to suit window 1,0 x 1,5m high ","m",441,null,{"$f":"G976*H976","v":0}]
[]
[3,6,89,null,"GALVANISED MILD STEEL POSTS, ETC","H2",0]
[]
[3,6,90,null,"Posts","H3",0]
[]
[3,6,90,6,"76 x 76 x 3600mm High posts including base plates and slotted to suite beam","No",10,null,{"$f":"G982*H982","v":0}]
[]
[3,6,90,null,"Sundries:","H3",0]
[]
[3,6,90,7,"10 x 180mm Mild steel bolts and nuts","No",40,null,{"$f":"G986*H986","v":0}]
[]
[3,6,90,null,"PROVISIONAL SUMS","H2",0]
[]
[3,6,90,8,"Provide an amount of R120,000.00 (One Hundred and Twenty Thousand Rand) for the supply and install of one (1) smart interactive board (screen) to be installed in the team teaching or general multi-purpose classroom or standard classroom. ","Item",1,null,120000]
[]
[3,6,90,9,"Allow for profit and general attendance","%",1,null,{"$f":"+I990*H992","v":0}]
[]
[3,6,90,10,"Provide an amount of R10,000.00 (Ten Thousand Rand) for training to be given on the functioning of the smart interactive screen.","Item",1,null,10000]
[]
[3,6,90,11,"Allow for profit and general attendance","%",1,null,{"$f":"I994*H996","v":0}]
[]
[3,6,{"$nulls":4},0,null,{"$f":"SUM(I947:I997)","v":{"v":130000,"d":"130,000.00"}}]
[]
[3,7,92,null,"NEW WORKS TO EXISTING BUILDINGS  BILL NO. 7  PLASTERING","H1",0]
[]
[3,7,92,null,"MODEL PREAMBLES","H2",0]
[]
[3,7,92,null,"The tenderer is referred to the \"Model Preambles for Trades 2008\" for supplementary and comprehensive expansion of descriptions, appropriate provision for which shall be deemed to have been included in all relevant rates",null,0]
[]
[3,7,92,null,"PLASTERING","H2",0]
[]
[3,7,92,null,"(CPAP WORK GROUP NO. 142 UNLESS OTHERWISE STATED)","H2",0]
[]
[3,7,92,null,"GRANOLITHIC","H2",0]
[]
[3,7,92,null,"Granolithic screeds on concrete","H3",0]
[]
[3,7,92,null,"Chip loose material away untill a dense uniform surface of concrete is obtained. Feathered edges shall be saw cut to form surfaces perpendicular to the concrete (minimum 20mm). All loose material and dust to be removed by water. The cavity shall then be filled with a non-shrink cementitious grout","H3",0]
[]
[3,7,92,1,"30mm Screed on previously screeded floors","m2",336,null,{"$f":"G1016*H1016","v":0}]
[]
[3,7,92,null,"INTERNAL PLASTER","H2",0]
[]
[3,7,93,null,"Cement plaster trowelled smooth on brickwork ","H3",0]
[]
[3,7,93,2,"On walls in small areas","m2",54,null,{"$f":"G1022*H1022","v":0}]
[]
[3,7,93,null,"EXTERNAL PLASTER","H2",0]
[]
[3,7,93,null,"Cement plaster trowelled smooth on brickwork ","H3",0]
[]
[3,7,93,3,"On walls in small areas","m2",79,null,{"$f":"G1028*H1028","v":0}]
[]
[3,7,{"$nulls":4},0,null,{"$f":"SUM(I1015:I1029)","v":{"v":0,"d":"0.00"}}]
[]
[3,8,95,null,"NEW WORKS TO EXISTING BUILDINGS  BILL NO. 8  PLUMBING AND DRAINAGE","H1",0]
[]
[3,8,95,null,"MODEL PREAMBLES","H2",0]
[]
[3,8,95,null,"The tenderer is referred to the \"Model Preambles for Trades 2008\" for supplementary and comprehensive expansion of descriptions, appropriate provision for which shall be deemed to have been included in all relevant rates",null,0]
[]
[3,8,95,null,"PLUMBING AND DRAINAGE","H2",0]
[]
[3,8,95,null,"(CPAP WORK GROUP NO. 148 UNLESS OTHERWISE STATED)","H2",0]
[]
[3,8,95,null,"RAINWATER DISPOSAL","H2",0]
[]
[3,8,95,null,"Seamless aluminium","H3",0]
[]
[3,8,95,1,"150 x 150mm Box gutters with white baked enamel finish fixed with concealed brackets","m",137,null,{"$f":"G1046*H1046","v":0}]
[]
[3,8,95,2,"100 x 75mm Fluted aluminium downpipes with white baked enamel finish","m",45,null,{"$f":"G1048*H1048","v":0}]
[]
[3,8,95,3,"Extra over eaves gutter for stopped end","No",14,null,{"$f":"G1050*H1050","v":0}]
[]
[3,8,96,4,"Extra over eaves gutter for drop box suitable for 150 x 150mm box gutter","No",11,null,{"$f":"G1052*H1052","v":0}]
[]
[3,8,96,5,"Extra over rainwater downpipe for bends","No",15,null,{"$f":"G1054*H1054","v":0}]
[]
[3,8,96,6,"Extra over rainwater downpipe for shoes","No",6,null,{"$f":"G1056*H1056","v":0}]
[]
[3,8,96,null,"SABS approved","H3",0]
[]
[3,8,96,7,"5000 Litre Polyethlene water storage tank securely placed on stand (elsewhere measured) approximately 800mm above ground level including outlet union and hole through tank for and including tommy PVC 20mm ball valve 90 degree elbow and connection to gutters ","No",4,null,{"$f":"G1060*H1060","v":0}]
[]
[3,8,96,8,"2 500 Litre Vertical polyethylene water storage tank complete, fitted with and including 20mm plastic ball valve and 90 deg HDPE Spout suitable for padlocking and setting in position on concrete tank stand (elsewhere measured) and tying down with 4mm diameter galvanised wire looped through 15mm hose enclosed steel link chain and secured to each corner of tank stand with a Y10 reinforcing rod twice bent and cast into concrete ","No",1,null,{"$f":"G1062*H1062","v":0}]
[]
[3,8,96,9,"Hole through top of tank lid for 75mm diameter rainwater pipe","No",5,null,{"$f":"G1064*H1064","v":0}]
[]
[3,8,{"$nulls":4},0,null,{"$f":"SUM(I1045:I1065)","v":{"v":0,"d":"0.00"}}]
[]
[3,9,98,null,"NEW WORKS TO EXISTING BUILDINGS  BILL NO. 9  GLAZING","H1",0]
[]
[3,9,98,null,"MODEL PREAMBLES","H2",0]
[]
[3,9,98,null,"The tenderer is referred to the \"Model Preambles for Trades 2008\" for supplementary and comprehensive expansion of descriptions, appropriate provision for which shall be deemed to have been included in all relevant rates",null,0]
[]
[3,9,98,null,"GLAZING","H2",0]
[]
[3,9,98,null,"(CPAP WORK GROUP NO. 150 UNLESS OTHERWISE STATED)","H2",0]
[]
[3,9,98,null,"GLAZING TO STEEL WITH PUTTY","H2",0]
[]
[3,9,98,null,"6,38mm PVB laminated clear safety glass secured into galvanized window with a compatible UV resistant sealant","H3",0]
[]
[3,9,98,1,"Panes exceeding 0,1m2 and not exceeding 0,5m2","m2",29,null,{"$f":"G1082*H1082","v":0}]
[]
[3,9,98,2,"Issue of Glazing Certificate.","Item",1,null,{"$f":"G1084*H1084","v":0}]
[]
[3,9,{"$nulls":4},0,null,{"$f":"SUM(I1081:I1085)","v":{"v":0,"d":"0.00"}}]
[]
[3,10,99,null,"NEW WORKS TO EXISTING BUILDINGS  BILL NO. 10  PAINTWORK","H1",0]
[]
[3,10,99,null,"MODEL PREAMBLES","H2",0]
[]
[3,10,99,null,"The tenderer is referred to the \"Model Preambles for Trades 2008\" for supplementary and comprehensive expansion of descriptions, appropriate provision for which shall be deemed to have been included in all relevant rates",null,0]
[]
[3,10,99,null,"SUPPLEMENTARY PREAMBLES","H2",0]
[]
[3,10,99,null,"Trade Names","H3",0]
[]
[3,10,99,null,"Where trade names are specified it will read \"or equal approved\"",null,0]
[]
[3,10,99,null,"(CPAP WORK GROUP NO. 152 UNLESS OTHERWISE STATED)","H2",0]
[]
[3,10,99,null,"PAINTWORK TO PREVIOUSLY PAINTED WORK","H2",0]
[]
[3,10,99,null,"ON FLOATED PLASTER","H2",0]
[]
[3,10,99,null,"Prepare and brush surface to remove all loose contaminants and apply one coat gypsum and plaster primer and two coats approved emulsion paint for interior use","H3",0]
[]
[3,10,99,1,"On internal walls","m2",436,null,{"$f":"G1108*H1108","v":0}]
[]
[3,10,100,null,"Prepare and brush surface to remove all loose contaminants and apply one coat alkali resistant primer, and two coats approved emulsion paint for external use","H3",0]
[]
[3,10,100,2,"On external walls","m2",351,null,{"$f":"G1112*H1112","v":0}]
[]
[3,10,100,null,"ON METAL","H2",0]
[]
[3,10,100,null,"Prepare and brush surface to remove all loose contaminants and apply one coat galvanized iron primer, one universal undercoat and two coats super enamel paint","H3",0]
[]
[3,10,100,3,"On window frames (measured on flat both sides)","m2",140,null,{"$f":"G1118*H1118","v":0}]
[]
[3,10,100,null,"PAINTWORK TO NEW WORK","H2",0]
[]
[3,10,100,null,"ON FLOATED PLASTER","H2",0]
[]
[3,10,100,null,"Prepare and brush surface to remove all loose contaminants and apply one coat gypsum and plaster primer and two coats approved emulsion paint for interior use","H3",0]
[]
[3,10,100,4,"On internal walls","m2",54,null,{"$f":"G1126*H1126","v":0}]
[]
[3,10,100,null,"Prepare and brush surface to remove all loose contaminants and apply one coat gypsum and plaster primer and two coats approved emulsion paint for interior use","H3",0]
[]
[3,10,100,5,"On external walls","m2",79,null,{"$f":"G1130*H1130","v":0}]
[]
[3,10,100,null,"ON FIBRE CEMENT","H2",0]
[]
[3,10,101,null,"Prepare and brush surface to remove loose contaminants and apply one coat professional gypsum & plaster primer , and two coats approved emulsion paint","H3",0]
[]
[3,10,101,6,"On fascias & barge boards","m2",36,null,{"$f":"G1136*H1136","v":0}]
[]
[3,10,101,null,"ON PLASTER BOARD","H2",0]
[]
[3,10,101,null,"Prepare, brush surface to remove all loose contaminants and apply one coat approved  alkali resistant primer, and two coats approved super acrylic Colour: White","H3",0]
[]
[3,10,101,7,"On ceilings and cornices","m2",351,null,{"$f":"G1142*H1142","v":0}]
[]
[3,10,101,null,"ON WOOD","H2",0]
[]
[3,10,101,null,"Prepare and brush surface to remove all loose contaminants and apply two coats approved carbolineum anti-corrosive coal tar paint","H3",0]
[]
[3,10,101,8,"On roof timbers at eaves and verges","m2",107,null,{"$f":"G1148*H1148","v":0}]
[]
[3,10,101,null,"Prepare, brush surface to remove all loose contaminants, stain and apply one coat woodcare Pretreatment, and three coats approved preservative strictly in accordance with the Manufacturer's instructions","H3",0]
[]
[3,10,101,9,"On doors","m2",25,null,{"$f":"G1152*H1152","v":0}]
[]
[3,10,101,null,"ON METAL","H2",0]
[]
[3,10,102,null,"Prepare and brush surface to remove all loose contaminants and apply one coat galvanized iron primer, one universal undercoat and two coats super enamel paint","H3",0]
[]
[3,10,102,10,"On door frames","m2",11,null,{"$f":"G1158*H1158","v":0}]
[]
[3,10,102,11,"On window frames","m2",13,null,{"$f":"G1160*H1160","v":0}]
[]
[3,10,{"$nulls":4},0,null,{"$f":"SUM(I1107:I1161)","v":{"v":0,"d":"0.00"}}]
[]
[{"$nulls":4},"SECTION SUMMARY"]
[]
[3,11,104,1,"Brickwork","Page 62",null,null,{"$f":"+I608","v":{"v":0,"d":"0.00"}}]
[]
[3,11,104,2,"Roof Coverings","Page 69",null,null,{"$f":"+I690","v":{"v":0,"d":"0.00"}}]
[]
[3,11,104,3,"Carpentry & Joinery","Page 79",null,null,{"$f":"+I814","v":{"v":0,"d":"0.00"}}]
[]
[3,11,104,4,"Ceilings & Partitions","Page 82",null,null,{"$f":"+I854","v":{"v":0,"d":"0.00"}}]
[]
[3,11,104,5,"Ironmongery","Page 86",null,null,{"$f":"+I928","v":{"v":0,"d":"0.00"}}]
[]
[3,11,104,6,"Metalwork","Page 91",null,null,{"$f":"+I998","v":{"v":130000,"d":"130,000.00"}}]
[]
[3,11,104,7,"Plastering","Page 94",null,null,{"$f":"+I1030","v":{"v":0,"d":"0.00"}}]
[]
[3,11,104,8,"Plumbing & Drainage","Page 97",null,null,{"$f":"+I1066","v":{"v":0,"d":"0.00"}}]
[]
[3,11,104,9,"Glazing","Page 98",null,null,{"$f":"+I1086","v":{"v":0,"d":"0.00"}}]
[]
[3,11,104,10,"Paintwork","Page 103",null,null,{"$f":"+I1162","v":{"v":0,"d":"0.00"}}]
[]
[{"$nulls":4},"SECTION SUMMARY SUB-TOTAL",{"$nulls":3},{"$f":"SUM(I1166:I1185)","v":{"v":130000,"d":"130,000.00"}}]
[]
[]
[4,1,105,null,"SITEWORKS  BILL NO. 1  EARTHWORKS","H1",0]
[]
[4,1,105,null,"(CPAP WORK GROUP NO. 104 UNLESS OTHERWISE STATED)","H2",0]
[]
[4,1,105,null,"EXCAVATION, FILLING, ETC OTHER THAN BULK","H2",0]
[]
[4,1,105,null,"Earth berm","H3",0]
[]
[4,1,105,1,"Create earth berm for stormwater control with imported G7 material Compacted to 95% Mod - 1500mm wide and 650mm high,incl excavations,etc. Thereafter to receive top-soil layer.","m",10,null,{"$f":"G1197*H1197","v":0}]
[]
[4,1,105,null,"Soak Away","H3",0]
[]
[4,1,105,2,"Excavate for and create 15sqm of 300mm thick gabion/reno mattress (as per drawing)","No",1,null,{"$f":"G1201*H1201","v":0}]
[]
[4,1,{"$nulls":4},0,null,{"$f":"SUM(I1196:I1202)","v":{"v":0,"d":"0.00"}}]
[]
[4,2,106,null,"SITEWORKS  BILL NO. 2  V DRAINS & APRONS","H1",0]
[]
[4,2,106,null,"REMOVAL OF EXISTING WORK","H2",0]
[]
[4,2,106,null,"Break up and Remove","H3",0]
[]
[4,2,106,1,"100mm Thick surface bed in walkways","m2",48,null,{"$f":"G1211*H1211","v":0}]
[]
[4,2,106,null,"SURFACE DRAINAGE","H2",0]
[]
[4,2,106,null,"(CPAP WORK GROUP TO BE AS PER RELEVANT TRADES)","H2",0]
[]
[4,2,106,null,"Precast or in-situ Ref 193 mesh reinforced concrete (25MPa) open stormwater channels having V-shaped waterway formed in top, finished smooth on all exposed surfaces in 3:1 cement plaster trowelled smooth and with angles rounded, cast in suitable lengths not exceeding 3m, including all formwork, moulds, shallow excavation, filling and ramming, laying to falls, bedding and pointing in 3:1 cement mortar","H3",0]
[]
[4,2,106,2,"V- shaped concrete channel 600mm wide and 100mm thick concrete lining with wood finish on exposed surfaces laid to falls in panels not exceeding 1.80m long, with 12mm softboard movement joints including all excavations, formwork, cart away as per drawing","m",87,null,{"$f":"G1219*H1219","v":0}]
[]
[4,2,106,3,"V- shaped concrete channel 1000mm wide and 100mm thick concrete lining with wood finish on exposed surfaces laid to falls in panels not exceeding 1.80m long, with 12mm softboard movement joints including all excavations, formwork, cart away as per drawing ","m",139,null,{"$f":"G1221*H1221","v":0}]
[]
[4,2,107,4,"Extra for 1000mm angle","No",4,null,{"$f":"G1223*H1223","v":0}]
[]
[4,2,107,5,"Extra for 1000mm T-intersection","No",4,null,{"$f":"G1225*H1225","v":0}]
[]
[4,2,107,6,"Extra for 600mm angle","No",4,null,{"$f":"G1227*H1227","v":0}]
[]
[4,2,107,7,"Extra for 600mm T-intersection","No",4,null,{"$f":"G1229*H1229","v":0}]
[]
[4,2,107,8,"Extra for forming 150mm thick 1000mm wide spreader fanning out to 2 600mm width at furthest end with cement grouted stone pitching cast in ass diffusers including working off concrete to a smooth finish","No",1,null,{"$f":"G1231*H1231","v":0}]
[]
[4,2,107,9,"10mm Thick polystyrene joint forming material in expansion joint between concrete and concrete surfaces in narrow widths not exceeding 300mm high","m",191,null,{"$f":"G1233*H1233","v":0}]
[]
[4,2,107,10,"Rake out 10mm wide expansion joint material for a depth of 10mm and point with UV and chemical resistant polysulphide sealant","m",191,null,{"$f":"G1235*H1235","v":0}]
[]
[4,2,107,null,"SOIL POISONING","H2",0]
[]
[4,2,107,null,"Soil insecticide inclusive of a written guarantee","H3",0]
[]
[4,2,107,11,"Under floors etc including forming and poisoning shallow furrows against foundation walls etc, filling in furrows and ramming. ","m2",191,null,{"$f":"G1241*H1241","v":0}]
[]
[4,2,107,null,"CONCRETE APRONS AND CLASS VERANDAH WALKWAYS","H2",0]
[]
[4,2,107,null,"EARTHWORKS","H2",0]
[]
[4,2,107,null,"(CPAP WORK GROUP NO. 104 UNLESS OTHERWISE STATED)","H2",0]
[]
[4,2,107,null,"SITE CLEARANCE ETC","H2",0]
[]
[4,2,108,null,"Site clearance","H3",0]
[]
[4,2,108,12,"Clear the area to be paved of all grass, roots, rubbish, etc. ","m2",41,null,{"$f":"G1253*H1253","v":0}]
[]
[4,2,108,null,"EXCAVATION, FILLING, ETC OTHER THAN BULK","H2",0]
[]
[4,2,108,null,"Excavation in earth not exceeding 2m deep","H3",0]
[]
[4,2,108,13,"Excavate in natural ground to reduce levels beneath areas to be paved","m2",10,null,{"$f":"G1259*H1259","v":0}]
[]
[4,2,108,14,"Trenches","m3",6,null,{"$f":"G1261*H1261","v":0}]
[]
[4,2,108,null,"EARTH FILLING, ETC.","H2",0]
[]
[4,2,108,null,"Coarse river sand filling supplied by the contractor:","H3",0]
[]
[4,2,108,15,"Under floors etc. (Provisional).","m3",3,null,{"$f":"G1267*H1267","v":0}]
[]
[4,2,108,null,"Earth filling obtained from the excavations and/or prescribed stock piles on site compacted to 97% Mod AASHTO density","H3",0]
[]
[4,2,108,16,"Backfilling to trenches, holes","m3",2,null,{"$f":"G1271*H1271","v":0}]
[]
[4,2,108,null,"COMPACTION","H2",0]
[]
[4,2,108,null,"Compaction of surfaces","H3",0]
[]
[4,2,108,17,"Scarify in-situ material for a depth of 150mm and compact to obtain 95% Mod AASHTO dry density","m2",97,null,{"$f":"G1277*H1277","v":0}]
[]
[4,2,108,null,"SOIL POISONING","H2",0]
[]
[4,2,109,null,"Soil insecticide inclusive of a written guarantee","H3",0]
[]
[4,2,109,18,"Under floors etc including forming and poisoning shallow furrows against foundation walls etc, filling in furrows and ramming","m2",72,null,{"$f":"G1283*H1283","v":0}]
[]
[4,2,109,19,"To bottoms and sides of trenches, holes, etc.","m2",48,null,{"$f":"G1285*H1285","v":0}]
[]
[4,2,109,null,"CONCRETE, FORMWORK AND REINFORCEMENT","H2",0]
[]
[4,2,109,null,"(CPAP WORK GROUP NO. 110 UNLESS OTHERWISE STATED)","H2",0]
[]
[4,2,109,null,"UNREINFORCED CONCRETE CAST AGAINST EXCAVATED SURFACES","H2",0]
[]
[4,2,109,null,"25MPa/19mm Concrete","H3",0]
[]
[4,2,109,20,"Strip footings ","m3",6,null,{"$f":"G1295*H1295","v":0}]
[]
[4,2,109,null,"REINFORCED CONCRETE","H2",0]
[]
[4,2,109,null,"25MPa/19mm Concrete","H3",0]
[]
[4,2,109,21,"Surface beds, slabs, etc to falls and currents","m3",11,null,{"$f":"G1301*H1301","v":0}]
[]
[4,2,109,null,"CONCRETE SUNDRIES","H2",0]
[]
[4,2,109,null,"Finishing top surfaces of concrete with a woodfloat finish","H3",0]
[]
[4,2,109,22,"Surface beds laid in panels to falls and true non-slip wood float finish including slightly rounded edges to panels","m2",72,null,{"$f":"G1307*H1307","v":0}]
[]
[4,2,110,null,"TEST BLOCKS","H2",0]
[]
[4,2,110,23,"Prepare a set of six concrete cubes each cube size 150 x 150 x 150mm for strength cubes and deliver to an approved laboratory for testing and pay all charges in connection therewith","No",1,null,{"$f":"G1311*H1311","v":0}]
[]
[4,2,110,null,"ROUGH FORMWORK (DEGREE OF ACCURACY II)","H2",0]
[]
[4,2,110,null,"(CPAP WORK GROUP NO. 111 UNLESS OTHERWISE STATED)","H2",0]
[]
[4,2,110,null,"Rough formwork to sides","H3",0]
[]
[4,2,110,24,"Apron slabs, paving and ramps not exceeding 300mm high","m",4,null,{"$f":"G1319*H1319","v":0}]
[]
[4,2,110,null,"Expansion joints with 10mm softboard between vertical concrete and brick surfaces","H3",0]
[]
[4,2,110,25,"10mm Joints not exceeding 300mm high","m",5,null,{"$f":"G1323*H1323","v":0}]
[]
[4,2,110,null,"STEEL REINFORCEMENT (PROVISIONAL)","H2",0]
[]
[4,2,110,null,"(CPAP WORK GROUP NO. 114 UNLESS OTHERWISE STATED)","H2",0]
[]
[4,2,110,null,"Mesh reinforcement","H3",0]
[]
[4,2,110,26,"Ref 193 welded mesh fabric reinforcement cast into concrete pavings, etc","m2",72,null,{"$f":"G1331*H1331","v":0}]
[]
[4,2,110,null,"BLOCKWORK","H2",0]
[]
[4,2,110,null,"3,5MPa Cement blocks in class II mortar","H3",0]
[]
[4,2,110,27,"M140 block walls ","m2",18,null,{"$f":"G1337*H1337","v":0}]
[]
[4,2,110,null,"BRICKWORK SUNDRIES","H2",0]
[]
[4,2,111,null,"Galvanized brickwork reinforcement","H3",0]
[]
[4,2,111,28,"150mm Wide reinforcement built in horizontally","m",48,null,{"$f":"G1343*H1343","v":0}]
[]
[4,2,111,null,"WATERPROOFING","H2",0]
[]
[4,2,111,null,"(CPAP WORK GROUP NO. 120 UNLESS OTHERWISE STATED)","H2",0]
[]
[4,2,111,null,"DAMPPROOFING OF WALLS AND FLOORS ","H2",0]
[]
[4,2,111,null,"One layer of 250 micron USB GREEN waterproof sheeting sealed at laps with Gunplas Pressure Sensitive Tape:","H3",0]
[]
[4,2,111,29,"Under surface beds.","m2",72,null,{"$f":"G1353*H1353","v":0}]
[]
[4,2,111,null,"JOINT SEALANTS ETC","H2",0]
[]
[4,2,111,null,"SANS approved two-part grey polysulphide sealing compound (UV and chemical resistent) including backing chord, bond breaker, primer, etc","H3",0]
[]
[4,2,111,30,"10 x 10mm In expansion joints between brickwork & concrete including raking out expansion joint filler as necessary","m",72,null,{"$f":"G1359*H1359","v":0}]
[]
[4,2,111,null,"PLASTERING","H2",0]
[]
[4,2,111,null,"SCREEDS","H2",0]
[]
[4,2,111,null,"1:5 Cement plaster screeds wood floated on concrete","H3",0]
[]
[4,2,111,31,"Average 25mm thick on floors to falls","m2",72,null,{"$f":"G1367*H1367","v":0}]
[]
[4,2,111,null,"EXTERNAL PLASTER ","H2",0]
[]
[4,2,112,null,"Cement plaster on brickwork:","H3",0]
[]
[4,2,112,32,"On walls.","m2",9,null,{"$f":"G1373*H1373","v":0}]
[]
[4,2,112,null,"PAINTWORK TO NEW WORK","H2",0]
[]
[4,2,112,null,"ON PLASTERED SURFACES","H2",0]
[]
[4,2,112,null,"Prepare and brush surface to remove all loose contaminants and apply one coat alkali resistant primer, and two coats approved washable emulsion paint for external use","H3",0]
[]
[4,2,112,33,"On external walls","m2",9,null,{"$f":"G1381*H1381","v":0}]
[]
[4,2,{"$nulls":4},0,null,{"$f":"SUM(I1210:I1382)","v":{"v":0,"d":"0.00"}}]
[]
[4,3,114,null,"SITEWORKS  BILL NO. 3  TANK STANDS","H1",0]
[]
[4,3,114,null,"(CPAP WORK GROUP NO. 104 UNLESS OTHERWISE STATED)","H2",0]
[]
[4,3,114,null,"EXCAVATION, FILLING, ETC OTHER THAN BULK","H2",0]
[]
[4,3,114,null,"Excavation in earth not exceeding 2m deep","H3",0]
[]
[4,3,114,1,"Trenches","m3",15,null,{"$f":"G1393*H1393","v":0}]
[]
[4,3,114,null,"Risk of collapse of excavations","H3",0]
[]
[4,3,114,2,"Sides of excavations not exceeding 1,5m deep","m2",46,null,{"$f":"G1397*H1397","v":0}]
[]
[4,3,114,null,"Extra over all excavations for carting away","H3",0]
[]
[4,3,114,3,"Surplus material from excavations and/or stock piles on site to a dumping site to be located by the contractor","m3",9,null,{"$f":"G1401*H1401","v":0}]
[]
[4,3,114,null,"Keeping excavations free of water","H3",0]
[]
[4,3,114,4,"Keeping excavations free of all water other than subterranean water","Item",1,null,{"$f":"G1405*H1405","v":0}]
[]
[4,3,114,null,"Earth filling obtained from the excavations and/or prescribed stock piles on site compacted to 97% Mod AASHTO density","H3",0]
[]
[4,3,114,5,"Backfilling to trenches, holes","m3",7,null,{"$f":"G1409*H1409","v":0}]
[]
[4,3,115,null,"Selected earth filling obtained from the excavations and/or prescribed stock piles on site of a minimum G7 grade and compacted to 95% Mod AASHTO density","H3",0]
[]
[4,3,115,6,"Under floors, steps, pavings, etc","m3",3,null,{"$f":"G1413*H1413","v":0}]
[]
[4,3,115,null,"Compaction of surfaces","H3",0]
[]
[4,3,115,7,"Compaction of ground surface under pavings etc including scarifying for a depth of 150mm, breaking down oversize material, adding suitable material where necessary and compacting to 98% Mod AASHTO density","m2",37,null,{"$f":"G1417*H1417","v":0}]
[]
[4,3,115,null,"SOIL POISONING","H2",0]
[]
[4,3,115,null,"Soil insecticide inclusive of a written guarantee","H3",0]
[]
[4,3,115,8,"Under floors etc including forming and poisoning shallow furrows against foundation walls etc, filling in furrows and ramming","m2",84,null,{"$f":"G1423*H1423","v":0}]
[]
[4,3,115,null,"CONCRETE, FORMWORK AND REINFORCEMENT","H2",0]
[]
[4,3,115,null,"(CPAP WORK GROUP NO. 110 UNLESS OTHERWISE STATED)","H2",0]
[]
[4,3,115,null,"UNREINFORCED CONCRETE CAST AGAINST EXCAVATED SURFACES","H2",0]
[]
[4,3,115,null,"25MPa/19mm Concrete","H3",0]
[]
[4,3,115,9,"Strip footings ","m3",5,null,{"$f":"G1433*H1433","v":0}]
[]
[4,3,115,null,"REINFORCED CONCRETE","H2",0]
[]
[4,3,116,null,"25MPa/19mm Concrete","H3",0]
[]
[4,3,116,10,"Surface beds cast in panels","m3",3,null,{"$f":"G1439*H1439","v":0}]
[]
[4,3,116,null,"CONCRETE SUNDRIES","H2",0]
[]
[4,3,116,null,"Finishing top surfaces of concrete with a woodfloat finish","H3",0]
[]
[4,3,116,11,"Surface beds, slabs, etc","m2",17,null,{"$f":"G1445*H1445","v":0}]
[]
[4,3,116,null,"TEST BLOCKS","H2",0]
[]
[4,3,116,12,"Prepare a set of six concrete cubes each cube size 150 x 150 x 150mm for strength cubes and deliver to an approved laboratory for testing and pay all charges in connection therewith","No",1,null,{"$f":"G1449*H1449","v":0}]
[]
[4,3,116,null,"STEEL REINFORCEMENT (PROVISIONAL)","H2",0]
[]
[4,3,116,null,"(CPAP WORK GROUP NO. 114 UNLESS OTHERWISE STATED)","H2",0]
[]
[4,3,116,null,"Mesh reinforcement","H3",0]
[]
[4,3,116,13,"Steel mesh reinforcement reference No. 193 in concrete slabs, etc. including all laps, bending, cutting, etc.  (Measured net).","m2",37,null,{"$f":"G1457*H1457","v":0}]
[]
[4,3,116,null,"BRICKWORK","H2",0]
[]
[4,3,116,null,"(CPAP WORK GROUP NO. 116 UNLESS OTHERWISE STATED)","H2",0]
[]
[4,3,116,null,"Brickwork of NFX bricks (14 MPa nominal compressive strength) in Class I mortar:","H3",0]
[]
[4,3,116,14,"One brick walls in foundations.","m2",18,null,{"$f":"G1465*H1465","v":0}]
[]
[4,3,117,null,"Brickwork of NFP bricks (14 MPa nominal compressive strength) in Class II mortar:","H3",0]
[]
[4,3,117,15,"One brick walls in superstructure.","m2",16,null,{"$f":"G1469*H1469","v":0}]
[]
[4,3,117,null,"Bagging and sealing the outer face of the inner skin of walls with 1:3 cement and sand mixture and seal with two coats \"Brixeal\" bitumen emulsion waterproofing coating:","H3",0]
[]
[4,3,117,16,"To walls (Provisional).","m2",34,null,{"$f":"G1473*H1473","v":0}]
[]
[4,3,117,null,"BRICKWORK SUNDRIES","H2",0]
[]
[4,3,117,null,"Galvanized brickwork reinforcement","H3",0]
[]
[4,3,117,17,"230mm Wide reinforcement built in horizontally.","m",154,null,{"$f":"G1479*H1479","v":0}]
[]
[4,3,117,null,"FACE BRICKWORK","H2",0]
[]
[4,3,117,null,"Approved face bricks in stretcher bond with ruled joints and perpends externally:","H3",0]
[]
[4,3,117,18,"Extra over brickwork for face brickwork externally.","m2",16,null,{"$f":"G1485*H1485","v":0}]
[]
[4,3,117,null,"Brick-on-edge header course copings, sills, etc, of approved face bricks pointed with recessed joints on all exposed faces, 220mm wide sill set sloping and slightly projecting:","H3",0]
[]
[4,3,117,19,"230mm Wide header course to top of one brick wall bedded and jointed in cement mortar and pointed on top and both sides as described.","m",31,null,{"$f":"G1489*H1489","v":0}]
[]
[4,3,117,null,"DAMPPROOFING OF WALLS AND FLOORS ","H2",0]
[]
[4,3,117,null,"One layer of 250 micron USB GREEN waterproof sheeting sealed at laps with Gunplas Pressure Sensitive Tape:","H3",0]
[]
[4,3,117,20,"Under surface beds.","m2",17,null,{"$f":"G1495*H1495","v":0}]
[]
[4,3,118,null,"METALWORK","H2",0]
[]
[4,3,118,null,"Sundry items","H3",0]
[]
[4,3,118,21,"30mm Approved brass padlock","No",5,null,{"$f":"G1501*H1501","v":0}]
[]
[4,3,118,22,"400mm Long x 50mm wide x 3mm thick hot dipped galvanized three times holed steel plate twice bolted to concrete with and including 8mm masonry anchors","No",5,null,{"$f":"G1503*H1503","v":0}]
[]
[4,3,118,null,"PLUMBING AND DRAINAGE","H2",0]
[]
[4,3,118,null,"Polycop","H3",0]
[]
[4,3,118,23,"15mm Pipe fixed to wall with and including proprietary brackets","m",12,null,{"$f":"G1509*H1509","v":0}]
[]
[4,3,118,24,"Extra on polycop piping for 15mm fittings","No",8,null,{"$f":"G1511*H1511","v":0}]
[]
[4,3,118,null,"PAINTWORK TO NEW WORK","H2",0]
[]
[4,3,118,null,"(CPAP WORK GROUP NO. 152 UNLESS OTHERWISE STATED)","H2",0]
[]
[4,3,118,null,"ON BRICK SURFACES","H2",0]
[]
[4,3,118,null,"Clean down with spirits of salts solution and apply two coats silicone-based brick dressing on: ","H3",0]
[]
[4,3,118,25,"On facings (Externally).","m2",16,null,{"$f":"G1521*H1521","v":0}]
[]
[4,3,{"$nulls":4},0,null,{"$f":"SUM(I1392:I1522)","v":{"v":0,"d":"0.00"}}]
[]
[{"$nulls":4},"SECTION SUMMARY "]
[]
[4,4,120,1,"Earthworks","Page 105",null,null,{"$f":"+I1203","v":{"v":0,"d":"0.00"}}]
[]
[4,4,120,2,"V Drains & Aprons","Page 113",null,null,{"$f":"+I1383","v":{"v":0,"d":"0.00"}}]
[]
[4,4,120,3,"Tank Stand","Page 119",null,null,{"$f":"+I1523","v":{"v":0,"d":"0.00"}}]
[]
[{"$nulls":4},"SECTION SUMMARY SUB-TOTAL",{"$nulls":3},{"$f":"SUM(I1526:I1532)","v":{"v":0,"d":"0.00"}}]
[]
[5,1,121,null,"Section No. 5","H1",0]
[]
[5,1,121,null,"BILL No.1 Electrical Installation","H1",0]
[]
[5,1,121,null,"(CPAP WORK GROUP NO. 160 UNLESS OTHERWISE STATED)","H1",0]
[]
[5,1,121,null,"Tenderers are to note that the sum included in the amount column for this Section of the Bills of Quantities, should be the total of all priced items in the Electrical Installation, Bill of Quantities as attached.",null,0]
[]
[5,1,121,null,"Note: Tenderers are to include for all Preliminary and General costs of the electrical contractor, in the rates.",null,0]
[]
[5,1,121,null,"REPAIRS AND RENOVATIONS TO EXISTING BUILDINGS","H1",0]
[]
[5,1,121,null,"Repair / Replace the electrical installation in  Classrooms, Admin Blocks, Toilets, etc that is to be refurbished or non-compliant in terms of SANS 10142-1. Note that all asbestos roofs on building is to be removed and replaced. Necessary safety gear to be used when working in this environment.",null,0]
[]
[5,1,121,null,"The contractor is to Remove and replace existing Lighting fixtures, DB's and other outlets that are affected or non-compliant in terms of SANS codes. Rates to include removing and re-fixing existing fixtures to new positions where applicable. All installations to be made safe in terms of SANS 10142-1. ",null,0]
[]
[5,1,121,null,"CONDUIT AND CONDUIT BOXES",null,0]
[]
[5,1,121,null,"Remove & replace PVC conduit in walls, floors or ceiling spaces as specified for lighting, small power and other auxiliary outlets, including couplings, bushes, bending, drawboxes and fixing, etc in accordance with non-metallic conduit and accessories as per SANS 950",null,0]
[]
[5,1,122,null,"P8000 Galvnised Trucnking C/W enclosure",null,0]
[]
[5,1,122,1,"Supply","m",50,null,{"$f":"G1557*H1557","v":0}]
[]
[5,1,122,2,"Install","m",50,null,{"$f":"G1559*H1559","v":0}]
[]
[5,1,122,null,"20mm PVC conduit ",null,0]
[]
[5,1,122,3,"Supply","m",50,null,{"$f":"G1563*H1563","v":0}]
[]
[5,1,122,4,"Install ","m",50,null,{"$f":"G1565*H1565","v":0}]
[]
[5,1,122,null,"20mm Bozal conduit ",null,0]
[]
[5,1,122,5,"Supply","m",10,null,{"$f":"G1569*H1569","v":0}]
[]
[5,1,122,6,"Install ","m",10,null,{"$f":"G1571*H1571","v":0}]
[]
[5,1,122,null,"20mm PVC round boxes complete with lids & mounting screws",null,0]
[]
[5,1,122,7,"Supply","No",10,null,{"$f":"G1575*H1575","v":0}]
[]
[5,1,122,8,"Install ","No",10,null,{"$f":"G1577*H1577","v":0}]
[]
[5,1,122,null,"100 x 100 x 50 mm deep mounted on surface for isolators / SSO units",null,0]
[]
[5,1,122,9,"Supply","No",5,null,{"$f":"G1581*H1581","v":0}]
[]
[5,1,122,10,"Install ","No",5,null,{"$f":"G1583*H1583","v":0}]
[]
[5,1,122,null,"CIRCUIT WIRING",null,0]
[]
[5,1,122,null,"Supply and install copper PVC insulated conductors in conduit or trunking system in walls, floors or in roof space for lights, plugs and power points, including connection to switches and equipment. ",null,0]
[]
[5,1,122,null,"1,5 mm²  (Live, Neutral and Earth)",null,0]
[]
[5,1,123,11,"Supply","m",900,null,{"$f":"G1591*H1591","v":0}]
[]
[5,1,123,12,"Install ","m",900,null,{"$f":"G1593*H1593","v":0}]
[]
[5,1,123,null,"2,5 mm²  (Live, Neutral and Earth)",null,0]
[]
[5,1,123,13,"Supply","m",900,null,{"$f":"G1597*H1597","v":0}]
[]
[5,1,123,14,"Install ","m",900,null,{"$f":"G1599*H1599","v":0}]
[]
[5,1,123,null,"4,0 mm² (Live, Neutral and Earth)",null,0]
[]
[5,1,123,15,"Supply","m",500,null,{"$f":"G1603*H1603","v":0}]
[]
[5,1,123,16,"Install ","m",500,null,{"$f":"G1605*H1605","v":0}]
[]
[5,1,123,null,"LIGHTING EQUIPMENT",null,0]
[]
[5,1,123,null,"Remove existing light fitting & replace with existing or with new lighting fixtures. Located in ceilings and / or walls. ",null,0]
[]
[5,1,123,null,"Supply & Install New Light Fittings",null,0]
[]
[5,1,123,null,"Type A",null,0]
[]
[5,1,123,null,"1500mm (5ft) Surface mounted,  open channel fluorescent luminaire. Metal Body. 2 x T5 fluorescent lamps complete with electronic control gear and telescopic ends. Minimum 8750 Lumens. 2 x 35W Cool White. Colour white or as per architect.",null,0]
[]
[5,1,123,17,"Supply","No",36,null,{"$f":"G1617*H1617","v":0}]
[]
[5,1,123,18,"Install","No",36,null,{"$f":"G1619*H1619","v":0}]
[]
[5,1,123,null,"Type B",null,0]
[]
[5,1,124,null,"Wall mounted  die-cast aluminium body with glass diffuser. IP 65, Corrosion and vandal resistant luminaire, complete with 2 x CFL lamp, electronic control gear and all necessary accessories. All external bolts to be stainless steel. Minimum 2400 lm.2 x 11W Cool White. Colour black or as per architect.",null,0]
[]
[5,1,124,19,"Supply","No",10,null,{"$f":"G1625*H1625","v":0}]
[]
[5,1,124,20,"Install ","No",10,null,{"$f":"G1627*H1627","v":0}]
[]
[5,1,124,null,"Type C Ceiling/Wall mounted  high pressure die-cast aluminium base with opal high-impact acrylic diffuser. Minimum IP 65, Corrosion and vandal resistant luminaire complete with 2x CFL lamps, electronic control gear and all necessary accessories. All external bolts to be stainless steel. Minimum 2400lm.2 x 11W Cool White. Colour black or as per architect.",null,0]
[]
[5,1,124,21,"Supply","No",10,null,{"$f":"G1631*H1631","v":0}]
[]
[5,1,124,22,"Install ","No",10,null,{"$f":"G1633*H1633","v":0}]
[]
[5,1,124,null,"Re-lamp existing lights with lamps as noted below:",null,0]
[]
[5,1,124,null,"230V, 11W ES/BC Compact Fluorescent lamps. Colour Cool White",null,0]
[]
[5,1,124,23,"Supply","No",34,null,{"$f":"G1639*H1639","v":0}]
[]
[5,1,124,24,"Install ","No",34,null,{"$f":"G1641*H1641","v":0}]
[]
[5,1,124,null,"230V, 1500mm T5 Fluorescent Tubes. Colour Cool White",null,0]
[]
[5,1,124,25,"Supply","No",34,null,{"$f":"G1645*H1645","v":0}]
[]
[5,1,124,26,"Install ","No",34,null,{"$f":"G1647*H1647","v":0}]
[]
[5,1,124,null,"MISCELLANEOUS",null,0]
[]
[5,1,125,null,"Administration Block Alarm System including connection cables.",null,0]
[]
[5,1,125,27,"Supply","No",1,null,{"$f":"G1653*H1653","v":0}]
[]
[5,1,125,28,"Install","No",1,null,{"$f":"G1655*H1655","v":0}]
[]
[5,1,125,null,"Telephone Distribution Board",null,0]
[]
[5,1,125,29,"Supply","No",1,null,{"$f":"G1659*H1659","v":0}]
[]
[5,1,125,30,"Install","No",1,null,{"$f":"G1661*H1661","v":0}]
[]
[5,1,125,null,"School Siren and Push Button with Latch in Timer",null,0]
[]
[5,1,125,31,"Supply","No",1,null,{"$f":"G1665*H1665","v":0}]
[]
[5,1,125,32,"Install","No",1,null,{"$f":"G1667*H1667","v":0}]
[]
[5,1,125,null,"50mm PVC Sleeve",null,0]
[]
[5,1,125,33,"Supply","m",10,null,{"$f":"G1671*H1671","v":0}]
[]
[5,1,125,34,"Install","m",10,null,{"$f":"G1673*H1673","v":0}]
[]
[5,1,125,null,"DISTRIBUTION BOARDS",null,0]
[]
[5,1,125,null,"Remove and replace distribution boards, complete with doors where applicable, frames, subframes, chassis, fixtures, fittings, spare space, busbar etc. as per specification and drawings. All shop drawings to be approved prior to manufacture. Refer to Schematic for full details and circuit breaker count.",null,0]
[]
[5,1,125,null,"12 Way Surface",null,0]
[]
[5,1,125,35,"Supply","No",1,null,{"$f":"G1681*H1681","v":0}]
[]
[5,1,125,36,"Install ","No",1,null,{"$f":"G1683*H1683","v":0}]
[]
[5,1,126,37,"Solar panel 5kw system Supply and Install","Item",1,null,200000]
[]
[5,1,126,38,"Allow for Municipal Eskom Meter","Item",1,null,50000]
[]
[5,1,126,null,"Upgrade DB to bring up to SANS standard and Supply & Install circuit breakers as required. All circuit breakers to match DB kA rating with minimum  6kA Schneider/ CBI breakers. To include all wiring, labels, blanks and safety labels for DB.",null,0]
[]
[5,1,126,null,"15Amp single phase Circuit breaker",null,0]
[]
[5,1,126,39,"Supply","No",4,null,{"$f":"+G1693*H1693","v":0}]
[]
[5,1,126,40,"Install ","No",4,null,{"$f":"+G1695*H1695","v":0}]
[]
[5,1,126,null,"20Amp single phase Circuit breaker",null,0]
[]
[5,1,126,41,"Supply","No",4,null,{"$f":"+G1699*H1699","v":0}]
[]
[5,1,126,42,"Install ","No",4,null,{"$f":"+G1701*H1701","v":0}]
[]
[5,1,126,null,"60Amp double pole Earth Leakage Unit",null,0]
[]
[5,1,126,43,"Supply","No",1,null,{"$f":"+G1705*H1705","v":0}]
[]
[5,1,126,44,"Install ","No",1,null,{"$f":"+G1707*H1707","v":0}]
[]
[5,1,126,null,"Class II 10kA single pole SPD unit",null,0]
[]
[5,1,126,45,"Supply","No",1,null,{"$f":"+G1711*H1711","v":0}]
[]
[5,1,126,46,"Install ","No",1,null,{"$f":"+G1713*H1713","v":0}]
[]
[5,1,126,null,"60Amp three phase 4 pole Main Circuit breaker ",null,0]
[]
[5,1,126,47,"Supply","No",1,null,{"$f":"+G1717*H1717","v":0}]
[]
[5,1,126,48,"Install ","No",1,null,{"$f":"+G1719*H1719","v":0}]
[]
[5,1,127,null,"40Amp Double pole single phase Main Circuit breaker ",null,0]
[]
[5,1,127,49,"Supply","No",1,null,{"$f":"+G1723*H1723","v":0}]
[]
[5,1,127,50,"Install ","No",1,null,{"$f":"+G1725*H1725","v":0}]
[]
[5,1,127,null,"LIGHT SWITCHES ",null,0]
[]
[5,1,127,null,"Remove and replace, 16 Amp light switches including flush 50 x 100 x 50mm boxes, including white coloured cover plates.",null,0]
[]
[5,1,127,null,"Single Lever, one way switch",null,0]
[]
[5,1,127,51,"Supply","No",8,null,{"$f":"+G1733*H1733","v":0}]
[]
[5,1,127,52,"Install ","No",8,null,{"$f":"+G1735*H1735","v":0}]
[]
[5,1,127,null,"Two Lever one way switch",null,0]
[]
[5,1,127,53,"Supply","No",8,null,{"$f":"+G1739*H1739","v":0}]
[]
[5,1,127,54,"Install ","No",8,null,{"$f":"+G1741*H1741","v":0}]
[]
[5,1,127,null,"IP65 Single Lever Switch",null,0]
[]
[5,1,127,55,"Supply","No",2,null,{"$f":"+G1745*H1745","v":0}]
[]
[5,1,127,56,"Install","No",2,null,{"$f":"+G1747*H1747","v":0}]
[]
[5,1,127,null,"One Lever two way switch",null,0]
[]
[5,1,127,57,"Supply","No",6,null,{"$f":"+G1751*H1751","v":0}]
[]
[5,1,127,58,"Install ","No",6,null,{"$f":"+G1753*H1753","v":0}]
[]
[5,1,127,null,"SWITCHED SOCKET OUTLETS ",null,0]
[]
[5,1,128,null,"Remove and replace 16Amp switched socket outlets including 100 x 100 x 50mm boxes with white coloured cover plates ",null,0]
[]
[5,1,128,59,"16 Amp 3 pin double SSO (White) Supply","No",8,null,{"$f":"+G1759*H1759","v":0}]
[]
[5,1,128,60,"Install ","No",8,null,{"$f":"+G1761*H1761","v":0}]
[]
[5,1,128,61,"16 Amp 3 pin Single (White) Supply","No",8,null,{"$f":"+G1763*H1763","v":0}]
[]
[5,1,128,62,"Install ","No",8,null,{"$f":"+G1765*H1765","v":0}]
[]
[5,1,128,null,"ISOLATORS ",null,0]
[]
[5,1,128,null,"Remove and replace isolator in GRP extension box. To be supplied complete with 100 x 100 x 50mm box",null,0]
[]
[5,1,128,null,"30 Amp 2 pole 230V",null,0]
[]
[5,1,128,63,"Supply","No",2,null,{"$f":"+G1773*H1773","v":0}]
[]
[5,1,128,64,"Install","No",2,null,{"$f":"+G1775*H1775","v":0}]
[]
[5,1,128,null,"30 Amp 2 pole 230V, weather proof",null,0]
[]
[5,1,128,65,"Supply","No",2,null,{"$f":"+G1779*H1779","v":0}]
[]
[5,1,128,66,"Install","No",2,null,{"$f":"+G1781*H1781","v":0}]
[]
[5,1,128,null,"PHOTO CELLS ",null,0]
[]
[5,1,128,null,"Replace 10 Amp day light switch per SANS 1777",null,0]
[]
[5,1,128,67,"Supply","No",2,null,{"$f":"+G1787*H1787","v":0}]
[]
[5,1,128,68,"Install","No",2,null,{"$f":"+G1789*H1789","v":0}]
[]
[5,1,129,null,"EARTHING, BONDING AND LIGHTNING PROTECTION",null,0]
[]
[5,1,129,null,"Install Earthing & Lightning Protection per SANS 10313, 62305 and 10142. To be undertaken by specialist earthing and lightning contractor. Refer to specification Part A. Item 14",null,0]
[]
[5,1,129,null,"8mm Diameter  Aluminium  lightning protection conductor. To include all holding down clamps, down conductors and bonding to earth ring.",null,0]
[]
[5,1,129,69,"Supply","m",30,null,{"$f":"+G1797*H1797","v":0}]
[]
[5,1,129,70,"Install","m",30,null,{"$f":"+G1799*H1799","v":0}]
[]
[5,1,129,null,"Bond the metal roofs at each corner of the building bonded to the earth electrode in the ground. To include lugs, brass screws, nuts and washers",null,0]
[]
[5,1,129,71,"Supply","No",8,null,{"$f":"+G1803*H1803","v":0}]
[]
[5,1,129,72,"Install","No",8,null,{"$f":"+G1805*H1805","v":0}]
[]
[5,1,129,null,"Provide test joint points at 500mm AFGL at each down conductor location. The test joint shall comprise of two lugs and a 10mm galvanized steel bolt and nut enclosed in a suitable GRP enclosure.",null,0]
[]
[5,1,129,73,"Supply","No",8,null,{"$f":"+G1809*H1809","v":0}]
[]
[5,1,129,74,"Install","No",8,null,{"$f":"+G1811*H1811","v":0}]
[]
[5,1,129,null,"50mm stranded BCEW down conductor in surface mounted PVC conduit complete with saddles",null,0]
[]
[5,1,129,75,"Supply","m",30,null,{"$f":"+G1815*H1815","v":0}]
[]
[5,1,129,76,"Install","m",30,null,{"$f":"+G1817*H1817","v":0}]
[]
[5,1,130,null,"1200mm x 16mm diameter Copper earth electrodes driven in ground, including 'Cadweld' joining sleeves as required",null,0]
[]
[5,1,130,77,"Supply","No",8,null,{"$f":"+G1821*H1821","v":0}]
[]
[5,1,130,78,"Install","No",8,null,{"$f":"+G1823*H1823","v":0}]
[]
[5,1,130,null,"LOW VOLTAGE CABLES",null,0]
[]
[5,1,130,null,"Supply and installation and termination of copper PVC/SWA/ECC cables laid in ducts, trenches, horizontal racks or vertical ducts.  Rates shall include the supply and fixing of supports with regard to installation of cables. Rates shall include the PVC cable ties  as required. All cables are Copper PVC/SWA/ECC cables per SANS 1507.",null,0]
[]
[5,1,130,null,"6.0mm 3 Core  ECC",null,0]
[]
[5,1,130,79,"Supply","m",100,null,{"$f":"+G1831*H1831","v":0}]
[]
[5,1,130,80,"Install","m",100,null,{"$f":"+G1833*H1833","v":0}]
[]
[5,1,130,81,"Term","No",4,null,{"$f":"+G1835*H1835","v":0}]
[]
[5,1,130,null,"16.0mm 3 Core ECC",null,0]
[]
[5,1,130,82,"Supply","m",100,null,{"$f":"+G1839*H1839","v":0}]
[]
[5,1,130,83,"Install","m",100,null,{"$f":"+G1841*H1841","v":0}]
[]
[5,1,130,84,"Term","No",4,null,{"$f":"+G1843*H1843","v":0}]
[]
[5,1,130,null,"Trench Excavations including temporary support of sides, keeping excavation dry, bedding material, backfilling, compacting and testing as specified. All backfill material to be suitable as per SANS codes and engineers approval. Backfill material to be imported if necessary. Trench depth to be 500mm below finished ground level.",null,0]
[]
[5,1,131,null,"In soft or pickable soil (60%)",null,0]
[]
[5,1,131,85,"Install","m3",15,null,{"$f":"+G1849*H1849","v":0}]
[]
[5,1,131,null,"Soft Rock (20%)",null,0]
[]
[5,1,131,86,"Install","m3",5,null,{"$f":"+G1853*H1853","v":0}]
[]
[5,1,131,null,"Hard Rock (20%)",null,0]
[]
[5,1,131,87,"Install","m3",5,null,{"$f":"+G1857*H1857","v":0}]
[]
[5,1,131,null,"Warning tape installed 300mm below ground level, above cables in trench",null,0]
[]
[5,1,131,88,"Install","m",100,null,{"$f":"+G1861*H1861","v":0}]
[]
[5,1,131,null,"TESTING, COMMISSIONING & HANDOVER",null,0]
[]
[5,1,131,89,"Test and commission complete installation as per SANS 10142-1.","Item",1,null,{"$f":"+G1865*H1865","v":0}]
[]
[5,1,131,90,"Provide Certificate of Compliance (CoC) as per SANS 10142-1. One for each DB and one overall.","Item",2,null,{"$f":"+G1867*H1867","v":0}]
[]
[5,1,131,91,"Provide Earthing certificate for entire site, to include earth resistance test of each down conductor earth electrode, measured by an Earthing specialist by means of an approved instrument. ","Item",1,null,{"$f":"+G1869*H1869","v":0}]
[]
[5,1,131,92,"Remove all redundant equipment, store and dispose at an approved dump site. A disposal certificate to be supplied.","Item",1,null,{"$f":"+G1871*H1871","v":0}]
[]
[5,1,{"$nulls":4},0,null,{"$f":"SUM(I1556:I1872)","v":{"v":250000,"d":"250,000.00"}}]
[]
[{"$nulls":4},"FINAL SUMMARY"]
[]
[6,1,133,1,"Preliminaries","Page",46,0,{"$f":"+I372","v":{"v":0,"d":"0.00"}}]
[]
[6,1,133,2,"Alterations (Provisional)","Page",58,0,{"$f":"+I534","v":{"v":0,"d":"0.00"}}]
[]
[6,1,133,3,"New Work to Existing Buildings (Provisional)","Page",104,0,{"$f":"+I1186","v":{"v":130000,"d":"130,000.00"}}]
[]
[6,1,133,4,"Siteworks (Provisional)","Page",120,0,{"$f":"+I1533","v":{"v":0,"d":"0.00"}}]
[]
[6,1,133,5,"Electrical Installation","Page",132,0,{"$f":"+I1873","v":{"v":250000,"d":"250,000.00"}}]
[]
[6,1,133,null,null,"Sub Total",null,null,{"$f":"SUM(I1876:I1886)","v":{"v":380000,"d":"380,000.00"}}]
[]
[6,1,133,null,null,"VAT at 15%",null,null,{"$f":"+I1887*15%","v":{"v":57000,"d":"57,000.00"}}]
[]
[{"$nulls":5},"Tender Amount",null,null,{"$f":"SUM(I1887:I1890)","v":{"v":437000,"d":"R437,000.00"}}]